Workbook

Sheet Data (hidden)
B1: ohms/1000ft | C1: ohms/1000ft | D1: ohm/km | E1: ohm/km | G1: UOM | H1: Value UOM | I1: Wire Gauge | J1: 75°C (167°F) | K1: 50°C (122°F) | M1: RepBatteries | N1: NACExtBatteries | O1: FQQRecentSheet | P1: LEDs On Concurrently | Q1: Battery Standby Hours | R1: Battery Alarm Minutes | S1: Battery Factor | T1: Speaker Tap | U1: Speaker Tap Value | V1: ANDAutoAddressType | W1: CNDNodeType | X1: NAC Amp Rating | Y1: NAC Source Current | Z1: Tap | AA1: Yes/No | AB1: On/Off | AC1: Brand | AD1: Panel Type | AE1: Device Application | AF1: NAC Output Type | AG1: Part Code Entry Mode | AH1: Circuit Tree View | AI1: Default Cover Selection | AJ1: NAC Audible | AK1: NAC Visual | AL1: =_xlfn.UNIQUE(_xlfn._xlws.FILTER(#REF!,#REF!<>"")) ->  | AM1: =ROW(AM1) -> 1 | AN1: IDNACRepBatts | AO1: Values | AQ1: Designations | AR1: Groups | AS1: Total Groups | AT1: TotalSumCalc | AU1: copyDesignation | AV1: FACP | AZ1: Next | BA1: 4 | BB1: 4
A2: Wire Gauge | B2: 75°C (167°F) | C2: 50°C (122°F) | D2: 75°C (167°F) | E2: 50°C (122°F) | G2: Feet | H2: =IF(P2PUnitOfMeasure="Feet",1,3.2808399) ->  | I2: 18 AWG | J2: =ROUND(B3*valueUOM,2) ->  | M2: No Batteries | N2: No Batteries | O2: Home | P2: 5 | Q2: 24 | R2: 5 | S2: 0.1 | T2: ¼ - Watt | U2: 0.25 | V2: Next | W2: JCI | Y2: 1 | Z2: | | AA2: Yes | AB2: Mouse Hover | AC2: Autocall | AD2: 4007ES | AE2: Fire | AF2: Regulated 24V | AG2: Explicit | AH2: Basic | AI2: Red Fire | AJ2: =ROW(AJ1) -> 1 | AK2: =ROW(AK1) -> 1 | AM2: =ROW(AM2) -> 2 | AN2: 2 x 6.2 Ah Battery 12V | AO2: 0 | AQ2: 1 | AR2: 1 | AS2: Total All Groups | AT2: Sum | AU2: Copy or Clear | AV2: First Floor | AZ2: Col | BA2: 5 | BB2: 5
A3: 18 AWG | B3: 7.77 | C3: 7.14 | D3: 25.49337 | E3: 23.42634 | G3: Meters | H3: =IF(P2PUnitOfMeasure="Feet","1000ft","km") ->  | I3: 16 AWG | M3: 24 hrs and 5 mins | N3: 24 hrs and 5 mins | P3: 10 | Q3: 36 | R3: 10 | S3: 0.2 | T3: ½ - Watt | U3: 0.5 | V3: Large | W3: Max Value | Y3: 1.5 | Z3: > | AA3: No | AB3: On | AC3: Simplex | AD3: 4010ES | AE3: Alert | AF3: Special Applications | AG3: Vague | AH3: Intermediate | AI3: White Fire | AJ3: =ROW(AJ2) -> 2 | AK3: =ROW(AK2) -> 2 | AM3: 3 | AN3: 2 x 10 Ah Battery 12V | AO3: 6.21 | AQ3: 2 | AR3: 2 | AS3: 1 | AT3: Calculated | AU3: Copy to Next Available | AV3: Second Floor | AZ3: is SIG | BA3: 6 | BB3: 6
A4: 16 AWG | B4: 4.89 | C4: 4.5 | D4: 16.04409 | E4: 14.7645 | I4: 14 AWG | M4: 24 hrs and 15 mins | N4: 24 hrs and 15 mins | P4: 20 | Q4: 48 | R4: 15 | S4: 0.3 | T4: 1 - Watt | U4: 1 | W4: Custom | Y4: 2 | Z4: < | AB4: Off | AD4: 4100ES | AE4: CO | AH4: Advance | AI4: Red Alert | AJ4: 3 | AK4: 3 | AM4: 4 | AN4: 2 x 12.7 Ah Battery 12V | AO4: 10.01 | AQ4: 3 | AR4: 3 | AS4: 2 | AU4: Copy Designation to X | AV4: Third Floor | AZ4: Setting | BA4: 7 | BB4: 7
A5: 14 AWG | B5: 3.07 | C5: 2.82 | D5: 10.07267 | E5: 9.25242 | I5: 12 AWG | M5: 72 hrs and 5 mins | N5: 72 hrs and 5 mins | P5: 30 | Q5: 60 | R5: 20 | S5: 0.4 | T5: 2 - Watts | U5: 2 | W5: NAC 3 Amp | X5: 3 | Y5: 3 | Z5: << | AE5: Security | AI5: White Alert | AJ5: 4 | AK5: 4 | AM5: 5 | AN5: 2 x 18 Ah Battery 12V | AO5: 12.71 | AQ5: 4 | AR5: 4 | AS5: 3 | AU5: CLEAR Designation | AV5: East Wing | BA5: 8 | BB5: 8
A6: 12 AWG | B6: 1.93 | C6: 1.77 | D6: 6.33233 | E6: 5.80737 | I6: 1.5mm2 | M6: 72 hrs and 15 mins | N6: 72 hrs and 15 mins | Q6: 72 | R6: 25 | S6: 0.5 | W6: NAC 2 Amp | X6: 2 | Z6: <<< | AE6: MNS | AI6: Red Blank | AJ6: 5 | AK6: 5 | AM6: 6 | AN6: 2 x 25 Ah Battery 12V | AO6: 18.01 | AQ6: 5 | AR6: 5 | AS6: 4 | AV6: West Wing | BA6: 9 | BB6: 9
A7: 1.5mm2 area | B7: 4.138299299 | C7: 3.808887534 | D7: 13.57776 | E7: 12.49696 | I7: 2.5mm2 | N7: 72hrs and 60 mins | R7: 30 | W7: NAC 1.5 Amp | X7: 1.5 | Z7: Root | AE7: Code Blue | AI7: White Blank | AJ7: 6 | AK7: 6 | AM7: 7 | AN7: Over Capacity | AO7: 25.01 | AQ7: 6 | AR7: 6 | AS7: 5 | AV7: North Pole | BA7: 10 | BB7: 10
A8: 2.5mm2 area | B8: 2.482979579 | C8: 2.285332521 | D8: 8.146656 | E8: 7.498176 | R8: 35 | W8: NAC 1 Amp | X8: 1 | Z8: JB | AE8: Biohazard | AI8: Red Arabic/Fire | AJ8: 7 | AK8: 7 | AM8: 8 | AQ8: 7 | AR8: 7 | AS8: 6 | AV8: South Pole | BA8: 11 | BB8: 11
R9: 40 | W9: Class A Return | Z9: TAP | AE9: Weather | AI9: White Arabic/Fire | AJ9: 8 | AK9: 8 | AM9: 9 | AQ9: 8 | AR9: 8 | AS9: 7 | BA9: 12 | BB9: 12
H10: Value UOM | I10: Wire Gauge | J10: 75°C (167°F) | K10: 50°C (122°F) | R10: 45 | Z10: MTAP | AE10: School | AI10: Red Chinese/Fire | AJ10: 9 | AK10: 9 | AM10: 10 | AQ10: 9 | AR10: 9 | AS10: 8 | BA10: 13 | BB10: 13
I11: 18 AWG | J11: =ROUND(B3,2) -> 7.77 | K11: =ROUND(C3,2) -> 7.14 | R11: 50 | Z11: TC | AI11: White Chinese/Fire | AJ11: 10 | AK11: 10 | AM11: 11 | AQ11: 10 | AR11: 10 | AS11: 9 | BA11: 14 | BB11: 14
A12: Input Brand | I12: 16 AWG | J12: =ROUND(B4,2) -> 4.89 | K12: =ROUND(C4,2) -> 4.5 | R12: 55 | Z12: REP | AI12: Red FEU/Fire | AJ12: 11 | AK12: 11 | AM12: 12 | AQ12: 11 | AR12: 11 | AS12: 10 | BA12: 15 | BB12: 15
A13: Simplex | I13: 14 AWG | J13: 3.07 | K13: 2.82 | R13: 60 | Z13: BR | AI13: White FEU/Fire | AJ13: 12 | AK13: 12 | AM13: 13 | AQ13: 12 | AR13: 12 | AS13: 11 | BA13: 16 | BB13: 16
I14: 12 AWG | J14: 1.93 | K14: 1.77 | AI14: Red FEU | AJ14: 13 | AK14: 13 | AM14: 14 | AQ14: 13 | AR14: 13 | AS14: 12 | BA14: 17 | BB14: 17
I15: 1.5mm2 | J15: 4.14 | K15: 3.81 | AI15: White FEU | AJ15: 14 | AK15: 14 | AM15: 15 | AQ15: 14 | AR15: 14 | AS15: 13 | BA15: 18 | BB15: 18
I16: 2.5mm2 | J16: 2.48 | K16: 2.29 | AI16: Red Logo Only | AJ16: 15 | AK16: 15 | AM16: 16 | AQ16: 15 | AR16: 15 | AS16: 14 | BA16: 19 | BB16: 19
AI17: White Logo Only | AJ17: 16 | AK17: 16 | AM17: 17 | AQ17: 16 | AR17: 16 | AS17: 15 | BA17: 20 | BB17: 20
AI18: Red Fuego/Fogo | AJ18: 17 | AK18: 17 | AM18: 18 | AQ18: 17 | AR18: 17 | AS18: 16 | BA18: 21 | BB18: 21
AJ19: 18 | AK19: 18 | AM19: 19 | AQ19: 18 | AR19: 18 | AS19: 17 | BA19: 22 | BB19: 22
B20: ohms/1000ft | C20: ohms/1000ft | D20: ohm/km | E20: ohm/km | AJ20: 19 | AK20: 19 | AM20: 20 | AQ20: 19 | AR20: 19 | AS20: 18 | BA20: 23 | BB20: 23
A21: Wire Gauge | B21: 75°C (167°F) | C21: 50°C (122°F) | D21: 75°C (167°F) | E21: 50°C (122°F) | AJ21: 20 | AK21: 20 | AM21: 21 | AQ21: 20 | AR21: 20 | AS21: 19 | BA21: 24 | BB21: 24
A22: 18 AWG | B22: 7.77 | C22: 7.14 | D22: 25.49337 | E22: 23.42634 | AJ22: 21 | AK22: 21 | AM22: 22 | AQ22: 21 | AR22: 21 | AS22: 20 | BA22: 25 | BB22: 25
A23: 16 AWG | B23: 4.89 | C23: 4.5 | D23: 16.04409 | E23: 14.7645 | AJ23: 22 | AK23: 22 | AM23: 23 | AQ23: 22 | AR23: 22 | AS23: 21 | BA23: 26 | BB23: 26
A24: 14 AWG | B24: 3.07 | C24: 2.82 | D24: 10.07267 | E24: 9.25242 | AJ24: 23 | AK24: 23 | AM24: 24 | AQ24: 23 | AR24: 23 | AS24: 22 | BA24: 27 | BB24: 27
A25: 12 AWG | B25: 1.93 | C25: 1.77 | D25: 6.33233 | E25: 5.80737 | AJ25: 24 | AK25: 24 | AM25: 25 | AQ25: 24 | AR25: 24 | AS25: 23 | BA25: 28 | BB25: 28
A26: 0.6mm dia | B26: 21.95435965 | C26: 20.20677596 | D26: 72.032254 | E26: 66.29843192 | AJ26: 25 | AK26: 25 | AM26: 26 | AQ26: 25 | AR26: 25 | AS26: 24 | BA26: 29 | BB26: 29
A27: 0.8mm dia | B27: 12.3493273 | C27: 11.36631148 | D27: 40.51814288 | E27: 37.29286796 | AJ27: 26 | AK27: 26 | AM27: 27 | AQ27: 26 | AR27: 26 | AS27: 25 | BA27: 30 | BB27: 30
A28: 1.5mm2 area | B28: 4.138299299 | C28: 3.808887534 | D28: 13.57776 | E28: 12.49696 | AJ28: 27 | AK28: 27 | AM28: 28 | AQ28: 27 | AR28: 27 | AS28: 26 | BA28: 31 | BB28: 31
A29: 2.5mm2 area | B29: 2.482979579 | C29: 2.285332521 | D29: 8.146656 | E29: 7.498176 | AJ29: 28 | AK29: 28 | AM29: 29 | AQ29: 28 | AR29: 28 | AS29: 27 | BA29: 32 | BB29: 32
AJ30: 29 | AK30: 29 | AM30: 30 | AQ30: 29 | AR30: 29 | AS30: 28 | BA30: 33 | BB30: 33
AJ31: 30 | AK31: 30 | AM31: 31 | AQ31: 30 | AR31: 30 | AS31: 29 | BA31: 34 | BB31: 34
AJ32: 31 | AK32: 31 | AM32: 32 | AQ32: 31 | AR32: 31 | AS32: 30 | BA32: 35 | BB32: 35
AJ33: 32 | AK33: 32 | AM33: 33 | AQ33: 32 | AR33: 32 | AS33: 31 | BA33: 36 | BB33: 36
AJ34: 33 | AK34: 33 | AM34: 34 | AQ34: 33 | AR34: 33 | AS34: 32 | BA34: 37 | BB34: 37
AJ35: 34 | AK35: 34 | AM35: 35 | AQ35: 34 | AR35: 34 | AS35: 33 | BA35: 38 | BB35: 38
AJ36: 35 | AK36: 35 | AM36: 36 | AQ36: 35 | AR36: 35 | AS36: 34 | BA36: 39 | BB36: 39
AJ37: 36 | AK37: 36 | AM37: 37 | AQ37: 36 | AR37: 36 | AS37: 35 | BA37: 40 | BB37: 40
AJ38: 37 | AK38: 37 | AM38: 38 | AQ38: 37 | AR38: 37 | AS38: 36 | BA38: 41 | BB38: 41
AJ39: 38 | AK39: 38 | AM39: 39 | AQ39: 38 | AR39: 38 | AS39: 37 | BA39: 42 | BB39: 42
AJ40: 39 | AK40: 39 | AM40: 40 | AQ40: 39 | AR40: 39 | AS40: 38 | BA40: 43 | BB40: 43
AJ41: 40 | AK41: 40 | AM41: 41 | AQ41: 40 | AR41: 40 | AS41: 39 | BA41: 44 | BB41: 44
AJ42: 41 | AK42: 41 | AM42: 42 | AQ42: 41 | AR42: 41 | AS42: 40 | BA42: 45 | BB42: 45
AJ43: 42 | AK43: 42 | AM43: 43 | AQ43: 42 | AR43: 42 | AS43: 41 | BA43: 46 | BB43: 46
AJ44: 43 | AK44: 43 | AM44: 44 | AQ44: 43 | AR44: 43 | AS44: 42 | BA44: 47 | BB44: 47
AJ45: 44 | AK45: 44 | AM45: 45 | AQ45: 44 | AR45: 44 | AS45: 43 | BA45: 48 | BB45: 48
AJ46: 45 | AK46: 45 | AM46: 46 | AQ46: 45 | AR46: 45 | AS46: 44 | BA46: 49 | BB46: 49
AJ47: 46 | AK47: 46 | AM47: 47 | AQ47: 46 | AR47: 46 | AS47: 45 | BA47: 50 | BB47: 50
AJ48: 47 | AK48: 47 | AM48: 48 | AQ48: 47 | AR48: 47 | AS48: 46 | BA48: 51 | BB48: 51
AJ49: 48 | AK49: 48 | AM49: 49 | AQ49: 48 | AR49: 48 | AS49: 47 | BA49: 52 | BB49: 52
AJ50: 49 | AK50: 49 | AM50: 50 | AQ50: 49 | AR50: 49 | AS50: 48 | BA50: 53 | BB50: 53
AJ51: 50 | AK51: 50 | AM51: 51 | AQ51: 50 | AR51: 50 | AS51: 49 | BA51: 54 | BB51: 54
AK52: 51 | AM52: 52 | AQ52: 51 | AR52: 51 | AS52: 50 | BA52: 55 | BB52: 55
AK53: 52 | AM53: 53 | AQ53: 52 | AR53: 52 | AS53: 51 | BA53: 56 | BB53: 56
AK54: 53 | AM54: 54 | AQ54: 53 | AR54: 53 | AS54: 52 | BA54: 57 | BB54: 57
AK55: 54 | AM55: 55 | AQ55: 54 | AR55: 54 | AS55: 53 | BA55: 58 | BB55: 58
AK56: 55 | AM56: 56 | AQ56: 55 | AR56: 55 | AS56: 54 | BA56: 59 | BB56: 59
AK57: 56 | AM57: 57 | AQ57: 56 | AR57: 56 | AS57: 55 | BA57: 60 | BB57: 60
AK58: 57 | AM58: 58 | AQ58: 57 | AR58: 57 | AS58: 56 | BA58: 61 | BB58: 61
AK59: 58 | AM59: 59 | AQ59: 58 | AR59: 58 | AS59: 57 | BA59: 62 | BB59: 62
AK60: 59 | AM60: 60 | AQ60: 59 | AR60: 59 | AS60: 58 | BA60: 63 | BB60: 63
AK61: 60 | AM61: 61 | AQ61: 60 | AR61: 60 | AS61: 59 | BA61: 64 | BB61: 64
AK62: 61 | AM62: 62 | AQ62: 61 | AR62: 61 | AS62: 60 | BA62: 65 | BB62: 65
AK63: 62 | AM63: 63 | AQ63: 62 | AR63: 62 | AS63: 61 | BA63: 66 | BB63: 66
AK64: 63 | AM64: 64 | AQ64: 63 | AR64: 63 | AS64: 62 | BA64: 67 | BB64: 67
AK65: 64 | AM65: 65 | AQ65: 64 | AR65: 64 | AS65: 63 | BA65: 68 | BB65: 68
AK66: 65 | AM66: =ROW(AM66) -> 66 | AQ66: 65 | AR66: 65 | AS66: 64 | BA66: 69 | BB66: 69
AK67: =ROW(AK66) -> 66 | AM67: 67 | AQ67: 66 | AR67: 66 | AS67: 65 | BA67: 70 | BB67: 70
AK68: 67 | AM68: 68 | AQ68: 67 | AR68: 67 | AS68: 66 | BA68: 71 | BB68: 71
AK69: 68 | AM69: 69 | AQ69: 68 | AR69: 68 | AS69: 67 | BA69: 72 | BB69: 72
AK70: 69 | AM70: 70 | AQ70: 69 | AR70: 69 | AS70: 68 | BA70: 73 | BB70: 73
AK71: 70 | AM71: 71 | AQ71: 70 | AR71: 70 | AS71: 69 | BA71: 74 | BB71: 74
AK72: 71 | AM72: 72 | AQ72: 71 | AR72: 71 | AS72: 70 | BA72: 75 | BB72: 75
AK73: 72 | AM73: 73 | AQ73: 72 | AR73: 72 | AS73: 71 | BA73: 76 | BB73: 76
AK74: 73 | AM74: 74 | AQ74: 73 | AR74: 73 | AS74: 72 | BA74: 77 | BB74: 77
AK75: 74 | AM75: 75 | AQ75: 74 | AR75: 74 | AS75: 73 | BA75: 78 | BB75: 78
AK76: 75 | AM76: 76 | AQ76: 75 | AR76: 75 | AS76: 74 | BA76: 79 | BB76: 79
AK77: 76 | AM77: 77 | AQ77: 76 | AR77: 76 | AS77: 75 | BA77: 80 | BB77: 80
AK78: 77 | AM78: 78 | AQ78: 77 | AR78: 77 | AS78: 76 | BA78: 81 | BB78: 81
AK79: 78 | AM79: 79 | AQ79: 78 | AR79: 78 | AS79: 77 | BA79: 82 | BB79: 82
AK80: 79 | AM80: 80 | AQ80: 79 | AR80: 79 | AS80: 78 | BA80: 83 | BB80: 83
AK81: 80 | AM81: 81 | AQ81: 80 | AR81: 80 | AS81: 79 | BA81: 84 | BB81: 84
AK82: 81 | AM82: 82 | AQ82: 81 | AR82: 81 | AS82: 80 | BA82: 85 | BB82: 85
AK83: 82 | AM83: 83 | AQ83: 82 | AR83: 82 | AS83: 81 | BA83: 86 | BB83: 86
AK84: 83 | AM84: 84 | AQ84: 83 | AR84: 83 | AS84: 82 | BA84: 87 | BB84: 87
AK85: 84 | AM85: 85 | AQ85: 84 | AR85: 84 | AS85: 83 | BA85: 88 | BB85: 88
AK86: 85 | AM86: 86 | AQ86: 85 | AR86: 85 | AS86: 84 | BA86: 89 | BB86: 89
AK87: 86 | AM87: 87 | AQ87: 86 | AR87: 86 | AS87: 85 | BA87: 90 | BB87: 90
AK88: 87 | AM88: 88 | AQ88: 87 | AR88: 87 | AS88: 86 | BA88: 91 | BB88: 91
AK89: 88 | AM89: 89 | AQ89: 88 | AR89: 88 | AS89: 87 | BA89: 92 | BB89: 92
AK90: 89 | AM90: 90 | AQ90: 89 | AR90: 89 | AS90: 88 | BA90: 93 | BB90: 93
AK91: 90 | AM91: 91 | AQ91: 90 | AR91: 90 | AS91: 89 | BA91: 94 | BB91: 94
AK92: 91 | AM92: 92 | AQ92: 91 | AR92: 91 | AS92: 90 | BA92: 95 | BB92: 95
AK93: 92 | AM93: 93 | AQ93: 92 | AR93: 92 | AS93: 91 | BA93: 96 | BB93: 96
AK94: 93 | AM94: 94 | AQ94: 93 | AR94: 93 | AS94: 92 | BA94: 97 | BB94: 97
AK95: 94 | AM95: 95 | AQ95: 94 | AR95: 94 | AS95: 93 | BA95: 98 | BB95: 98
AK96: 95 | AM96: 96 | AQ96: 95 | AR96: 95 | AS96: 94 | BA96: 99 | BB96: 99
AK97: 96 | AM97: 97 | AQ97: 96 | AR97: 96 | AS97: 95 | BA97: 100 | BB97: 100
AK98: 97 | AM98: 98 | AQ98: 97 | AR98: 97 | AS98: 96 | BA98: 101 | BB98: 101
AK99: 98 | AM99: 99 | AQ99: 98 | AR99: 98 | AS99: 97 | BA99: 102 | BB99: 102
AK100: 99 | AM100: 100 | AQ100: 99 | AR100: 99 | AS100: 98 | BA100: 103 | BB100: 103
AK101: 100 | AM101: 101 | AQ101: 100 | AR101: 100 | AS101: 99 | BA101: 104 | BB101: 104
AK102: 101 | AM102: 102 | AS102: 100 | BA102: 105 | BB102: 105
AK103: 102 | AM103: 103 | BA103: 106 | BB103: 106
AK104: 103 | AM104: 104 | BA104: 107 | BB104: 107
AK105: 104 | AM105: 105 | BA105: 108 | BB105: 108
AK106: 105 | AM106: 106 | BA106: 109 | BB106: 109
AK107: 106 | AM107: 107 | BA107: 110 | BB107: 110
AK108: 107 | AM108: 108 | BA108: 111 | BB108: 111
AK109: 108 | AM109: 109 | BA109: 112 | BB109: 112
AK110: 109 | AM110: 110 | BA110: 113 | BB110: 113
AK111: 110 | AM111: 111 | BA111: 114 | BB111: 114
AK112: 111 | AM112: 112 | BA112: 115 | BB112: 115
AK113: 112 | AM113: 113 | BA113: 116 | BB113: 116
AK114: 113 | AM114: 114 | BA114: 117 | BB114: 117
AK115: 114 | AM115: 115 | BA115: 118 | BB115: 118
AK116: 115 | AM116: 116 | BA116: 119 | BB116: 119
AK117: 116 | AM117: 117 | BA117: 120 | BB117: 120
AK118: 117 | AM118: 118 | BA118: 121 | BB118: 121
AK119: 118 | AM119: 119 | BA119: 122 | BB119: 122
AK120: 119 | AM120: 120 | BA120: 123 | BB120: 123
AK121: 120 | AM121: 121 | BA121: 124 | BB121: 124
AK122: 121 | AM122: 122 | BA122: 125 | BB122: 125
AK123: 122 | AM123: 123 | BA123: 126 | BB123: 126
AK124: 123 | AM124: 124 | BA124: 127 | BB124: 127
AK125: 124 | AM125: 125 | BA125: 128 | BB125: 128
AK126: 125 | AM126: 126 | BA126: 129 | BB126: 129
AK127: 126 | AM127: 127 | BA127: 130 | BB127: 130
AK128: 127 | BA128: 131 | BB128: 131
AK129: 128 | BA129: 132 | BB129: 132
AK130: 129 | BA130: 133 | BB130: 133
AK131: =ROW(AK130) -> 130 | BA131: 134 | BB131: 134
AK132: 131 | BA132: 135 | BB132: 135
AK133: 132 | BA133: 136 | BB133: 136
AK134: 133 | BA134: 137 | BB134: 137
AK135: 134 | BA135: 138 | BB135: 138
AK136: 135 | BA136: 139 | BB136: 139
AK137: 136 | BA137: 140 | BB137: 140
AK138: 137 | BA138: 141 | BB138: 141
AK139: 138 | BA139: 142 | BB139: 142
AK140: 139 | BA140: 143 | BB140: 143
AK141: 140 | BA141: 144 | BB141: 144
AK142: 141 | BA142: 145 | BB142: 145
AK143: 142 | BA143: 146 | BB143: 146
AK144: 143 | BA144: 147 | BB144: 147
AK145: 144 | BA145: 148 | BB145: 148
AK146: 145 | BA146: 149 | BB146: 149
AK147: 146 | BA147: 150 | BB147: 150
AK148: 147 | BA148: 151 | BB148: 151
AK149: 148 | BA149: 152 | BB149: 152
AK150: 149 | BA150: 153 | BB150: 153
AK151: 150 | BA151: 154 | BB151: 154
AK152: 151 | BA152: 155 | BB152: 155
AK153: 152 | BA153: 156 | BB153: 156
AK154: 153 | BA154: 157 | BB154: 157
AK155: 154 | BA155: 158 | BB155: 158
AK156: 155 | BA156: 159 | BB156: 159
AK157: 156 | BA157: 160 | BB157: 160
AK158: 157 | BA158: 161 | BB158: 161
AK159: 158 | BA159: 162 | BB159: 162
AK160: 159 | BA160: 163 | BB160: 163
AK161: 160 | BA161: 164 | BB161: 164
AK162: 161 | BA162: 165 | BB162: 165
AK163: 162 | BA163: 166 | BB163: 166
AK164: 163 | BA164: 167 | BB164: 167
AK165: 164 | BA165: 168 | BB165: 168
AK166: 165 | BA166: 169 | BB166: 169
AK167: 166 | BA167: 170 | BB167: 170
AK168: 167 | BA168: 171 | BB168: 171
AK169: 168 | BA169: 172 | BB169: 172
AK170: 169 | BA170: 173 | BB170: 173
AK171: 170 | BA171: 174 | BB171: 174
AK172: 171 | BA172: 175 | BB172: 175
AK173: 172 | BA173: 176 | BB173: 176
AK174: 173 | BA174: 177 | BB174: 177
AK175: 174 | BA175: 178 | BB175: 178
AK176: 175 | BA176: 179 | BB176: 179
AK177: 176 | BA177: 180 | BB177: 180
AK178: 177 | BA178: 181 | BB178: 181
AK179: 178 | BA179: 182 | BB179: 182
AK180: 179 | BA180: 183 | BB180: 183
AK181: 180 | BA181: 184 | BB181: 184
AK182: 181 | BA182: 185 | BB182: 185
AK183: 182 | BA183: 186 | BB183: 186
AK184: 183 | BA184: 187 | BB184: 187
AK185: 184 | BA185: 188 | BB185: 188
AK186: 185 | BA186: 189 | BB186: 189
AK187: 186 | BA187: 190 | BB187: 190
AK188: 187 | BA188: 191 | BB188: 191
AK189: 188 | BA189: 192 | BB189: 192
AK190: 189 | BA190: 193 | BB190: 193
AK191: 190 | BA191: 194 | BB191: 194
AK192: 191 | BA192: 195 | BB192: 195
AK193: 192 | BA193: 196 | BB193: 196
AK194: 193 | BA194: 197 | BB194: 197
AK195: =ROW(AK194) -> 194 | BA195: 198 | BB195: 198
AK196: 195 | BA196: 199 | BB196: 199
AK197: 196 | BA197: 200 | BB197: 200
AK198: 197 | BA198: 201 | BB198: 201
AK199: 198 | BA199: 202 | BB199: 202
AK200: 199 | BA200: 203 | BB200: 203
... 300 more rows

Sheet Home
AM1: No Selection
B2: Simplex Battery Calculator | AM2: Loading%
AM3: Field Device
B4: =IF(ISBLANK(E4),0,1) -> 1 | C4: Project Name | E4: Polaris Philippine Project
B6: =IF(ISBLANK(E6),0,1) -> 1 | C6: Customer Name | E6: Black & White Consultant Philippine
B8: =IF(ISBLANK(E8),0,1) -> 1 | E8: Philippine
B10: =IF(ISBLANK(E10),0,1) -> 1 | C10: Phase | E10: Phase 1
B12: =IF(ISBLANK(E12),0,1) -> 1 | C12: Prepared by | E12: Prestige Philippine
B14: =IF(ISBLANK(E14),0,1) -> 1 | C14: Date | E14: 14th Oct 2024
B19: Selection for Battery Calculation for the Option Below:
C20: IDNet | E20: ESMX | G20: NAC | I20: IDNAC | K20: AUX
B21: Selection | C21: Loading% | E21: Loading% | G21: Loading% | I21: Loading% | K21: Loading%
B23: *Note:
B24: If Loading % is selected will be base on o%, 25%, 50%, 75% and 100% Loadin
B25: Selection Navigator is base on Worst Case(100%) or base number of Address deviceeeee or Current Selected(NAC)

Sheet Battery Selection
A1: 1 | I1: =IF(SUM(I3:W3)>0,"A Battery Set has more than one main panel selected","Battery Set Selections are OK") -> Battery Set Selections are OK
A2: 1 | G2: =COUNT(G8:G2000) -> 0 | I2: =COUNT(I8:I2000) -> 19 | K2: =COUNT(K8:K2000) -> 0 | M2: =COUNT(M8:M2000) -> 0 | O2: =COUNT(O8:O2000) -> 0 | Q2: =COUNT(Q8:Q2000) -> 0 | S2: =COUNT(S8:S2000) -> 0 | U2: =COUNT(U8:U2000) -> 0 | W2: =COUNT(W8:W2000) -> 0
A3: 1 | G3: Totals Only | I3: =IF(SUMPRODUCT(I8:I2000,$AD$8:$AD$2000)>1,1,0) -> 0 | K3: =IF(SUMPRODUCT(K8:K2000,$AD$8:$AD$2000)>1,1,0) -> 0 | M3: =IF(SUMPRODUCT(M8:M2000,$AD$8:$AD$2000)>1,1,0) -> 0 | O3: =IF(SUMPRODUCT(O8:O2000,$AD$8:$AD$2000)>1,1,0) -> 0 | Q3: =IF(SUMPRODUCT(Q8:Q2000,$AD$8:$AD$2000)>1,1,0) -> 0 | S3: =IF(SUMPRODUCT(S8:S2000,$AD$8:$AD$2000)>1,1,0) -> 0 | U3: =IF(SUMPRODUCT(U8:U2000,$AD$8:$AD$2000)>1,1,0) -> 0 | W3: =IF(SUMPRODUCT(W8:W2000,$AD$8:$AD$2000)>1,1,0) -> 0
A4: 1 | D4: Product Description | E4: Part Codes | G4: Set 0 | I4: Set 1 | K4: Set 2 | M4: Set 3 | O4: Set 4 | Q4: Set 5 | S4: Set 6 | U4: Set 7 | W4: Set 8 | AC4: Total Qty | AD4: DevCode | AE4: Product Description | AF4: Part Codes | AG4: Qty | AH4: Unit Standby Amps | AI4: Total Standby Amps | AJ4: Unit Alarm Amps | AK4: Total Alarm Amps | AL4: Unit Standby mA | AM4: Unit Alarm mA | AO4: MX Device
A5: 1 | B5: =IF(OR(C5="+",C5="-"),0,B4+1) -> 0 | C5: - | D5: =REPT(" ",A5-1)&AE5 -> PANELS AND CONTROL EQUIPMENT | AD5: =IF(SUM(AG5:AG486)>0,"h","") -> h | AE5: PANELS AND CONTROL EQUIPMENT | AH5: header | AI5: header | AJ5: header | AK5: header
A6: 2 | B6: =IF(OR(C6="+",C6="-"),0,B5+1) -> 0 | C6: + | D6: FOUNDATION SERIES | AE6: FOUNDATION SERIES
A7: 3 | B7: 0 | C7: + | D7: 2004FS 4 ZONE CONVENTIONAL PANEL | AE7: 2004FS 4 ZONE CONVENTIONAL PANEL
A8: 4 | B8: 1 | C8: ★ | D8: 2004FS Conventional 4 Zone Panel | E8: =AF8 -> 4004-9101 | AC8: =SUM(G8:W8) -> 0 | AD8: 1 | AE8: 2004FS Conventional 4 Zone Panel | AF8: 4004-9101 | AG8: =CHOOSE(brBatterySet,I8:I2000,K8:K2000,M8:M2000,O8:O2000,Q8:Q2000,S8:S2000,U8:U2000,W8:W2000) -> 0 | AH8: =AL8/1000 -> 0.1 | AI8: =AG8*AH8 -> 0 | AJ8: =AM8/1000 -> 0.15 | AK8: =AG8*AJ8 -> 0 | AL8: 100 | AM8: 150
A9: 4 | B9: 2 | D9: Remote LED Annunciator | E9: =AF9 -> 4606-9111 | AC9: =SUM(G9:W9) -> 0 | AE9: Remote LED Annunciator | AF9: 4606-9111 | AG9: 0 | AH9: 0.024 | AI9: =AG9*AH9 -> 0 | AJ9: 0.026 | AK9: =AG9*AJ9 -> 0 | AL9: 24 | AM9: 26
A10: 4 | B10: 3 | D10: City Circuit Module | E10: 4004-9909 | AC10: 0 | AE10: City Circuit Module | AF10: 4004-9909 | AG10: 0 | AH10: 0.03 | AI10: 0 | AJ10: 0.06 | AK10: 0 | AL10: 30 | AM10: 60
A11: 4 | B11: 4 | D11: Zones Used | E11: 0 | AC11: 0 | AE11: Zones Used | AG11: 0 | AH11: 0.009 | AI11: 0 | AJ11: 0.06 | AK11: 0 | AL11: 9 | AM11: 60
A12: 3 | B12: 0 | C12: + | D12: 2008FS 8 ZONE CONVENTIONAL PANEL | E12: 0 | AC12: 0 | AD12: 1 | AE12: 2008FS 8 ZONE CONVENTIONAL PANEL | AG12: 0 | AH12: 0 | AI12: 0 | AJ12: 0 | AK12: 0
A13: 4 | B13: 1 | C13: ★ | D13: 2008FS Conventional 8 Zone Panel | E13: 4008-9101 | AC13: 0 | AD13: 1 | AE13: 2008FS Conventional 8 Zone Panel | AF13: 4008-9101 | AG13: 0 | AH13: 0.13 | AI13: 0 | AJ13: 0.16 | AK13: 0 | AL13: 130 | AM13: 160
A14: 4 | B14: 2 | D14: Remote LCD Annunciator | E14: 4606-9101 | AC14: 0 | AE14: Remote LCD Annunciator | AF14: 4606-9101 | AG14: 0 | AH14: 0.04 | AI14: 0 | AJ14: 0.048 | AK14: 0 | AL14: 40 | AM14: 48
A15: 4 | B15: 3 | D15: City Circuit Module | E15: 4004-9909 | AC15: 0 | AE15: City Circuit Module | AF15: 4004-9909 | AG15: 0 | AH15: 0.03 | AI15: 0 | AJ15: 0.06 | AK15: 0 | AL15: 30 | AM15: 60
A16: 4 | B16: 4 | D16: Zones Used | E16: 0 | AC16: 0 | AE16: Zones Used | AG16: 0 | AH16: 0.009 | AI16: 0 | AJ16: 0.06 | AK16: 0 | AL16: 9 | AM16: 60
A17: 3 | B17: 0 | C17: + | D17: 2050FS 50 POINT ADDRESSABLE PANEL | E17: 0 | AC17: 0 | AE17: 2050FS 50 POINT ADDRESSABLE PANEL | AG17: 0 | AH17: 0 | AI17: 0 | AJ17: 0 | AK17: 0
A18: 5 | B18: 1 | C18: ★ | D18: 2050FS Conventional 8 Zone Panel | E18: 4050-9101 | AC18: 0 | AD18: 1 | AE18: 2050FS Conventional 8 Zone Panel | AF18: 4050-9101 | AG18: 0 | AH18: 0.175 | AI18: 0 | AJ18: 0.215 | AK18: 0 | AL18: 175 | AM18: 215
A19: 5 | B19: 2 | D19: Remote LCD Annunciator | E19: 4606-9101 | AC19: 0 | AE19: Remote LCD Annunciator | AF19: 4606-9101 | AG19: 0 | AH19: 0.04 | AI19: 0 | AJ19: 0.048 | AK19: 0 | AL19: 40 | AM19: 48
A20: 5 | B20: 3 | D20: City Circuit Module | E20: 4050-9909 | AC20: 0 | AE20: City Circuit Module | AF20: 4050-9909 | AG20: 0 | AH20: 0.02 | AI20: 0 | AJ20: 0.036 | AK20: 0 | AL20: 20 | AM20: 36
A21: 5 | B21: 4 | C21: ★ | D21: Connected Services Gateway and IP Communicator Module | E21: 4250-9800 | AC21: 0 | AE21: Connected Services Gateway and IP Communicator Module | AF21: 4250-9800 | AG21: 0 | AH21: 0.125 | AI21: 0 | AJ21: 0.125 | AK21: 0 | AL21: 125 | AM21: 125
A22: 5 | B22: 5 | C22: ★ | D22: GSM 4G/LTE Cellular module kit | E22: 4007-6416|4007-6417 | AC22: 0 | AE22: GSM 4G/LTE Cellular module kit | AF22: 4007-6416|4007-6417 | AG22: 0 | AH22: 0.02 | AI22: 0 | AJ22: 0.02 | AK22: 0 | AL22: 20 | AM22: 20
A23: 3 | B23: 0 | C23: + | D23: 2250FS 250 POINT ADDRESSABLE PANEL | E23: 0 | AC23: 0 | AE23: 2250FS 250 POINT ADDRESSABLE PANEL | AG23: 0 | AH23: 0 | AI23: 0 | AJ23: 0 | AK23: 0
A24: 5 | B24: 1 | C24: ★ | D24: 2250FS Conventional 8 Zone Panel | E24: 4250-9101 | AC24: 0 | AD24: 1 | AE24: 2250FS Conventional 8 Zone Panel | AF24: 4250-9101 | AG24: 0 | AH24: 0.175 | AI24: 0 | AJ24: 0.215 | AK24: 0 | AL24: 175 | AM24: 215
A25: 5 | B25: 2 | D25: Remote LCD Annunciator | E25: 4606-9101 | AC25: 0 | AE25: Remote LCD Annunciator | AF25: 4606-9101 | AG25: 0 | AH25: 0.04 | AI25: 0 | AJ25: 0.048 | AK25: 0 | AL25: 40 | AM25: 48
A26: 5 | B26: 3 | D26: City Circuit Module | E26: 4050-9909 | AC26: 0 | AE26: City Circuit Module | AF26: 4050-9909 | AG26: 0 | AH26: 0.02 | AI26: 0 | AJ26: 0.036 | AK26: 0 | AL26: 20 | AM26: 36
A27: 5 | B27: 4 | C27: ★ | D27: Connected Services Gateway and IP Communicator Module | E27: 4250-9800 | AC27: 0 | AE27: Connected Services Gateway and IP Communicator Module | AF27: 4250-9800 | AG27: 0 | AH27: 0.125 | AI27: 0 | AJ27: 0.125 | AK27: 0 | AL27: 125 | AM27: 125
A28: 5 | B28: 5 | C28: ★ | D28: GSM 4G/LTE Cellular module kit | E28: 4007-6416|4007-6417 | AC28: 0 | AE28: GSM 4G/LTE Cellular module kit | AF28: 4007-6416|4007-6417 | AG28: 0 | AH28: 0.02 | AI28: 0 | AJ28: 0.02 | AK28: 0 | AL28: 20 | AM28: 20
A29: 2 | B29: 0 | C29: + | D29: 4007ES | E29: 0 | AC29: 0 | AE29: 4007ES | AG29: 0 | AH29: 0 | AI29: 0 | AJ29: 0 | AK29: 0
A30: 3 | B30: 0 | C30: + | D30: 4007ES HYBRID PANEL IDNET WITH 4 CONVENTIONAL NACS | E30: 0 | AC30: 0 | AE30: 4007ES HYBRID PANEL IDNET WITH 4 CONVENTIONAL NACS | AG30: 0 | AH30: 0 | AI30: 0 | AJ30: 0 | AK30: 0
A31: 4 | B31: 1 | C31: ★ | D31: Red 4007ES Hybrid Panel | E31: 4007-9101 | AC31: 0 | AD31: 1 | AE31: Red 4007ES Hybrid Panel | AF31: 4007-9101 | AG31: 0 | AH31: 0.145 | AI31: =AG31*AH31 -> 0 | AJ31: 0.195 | AK31: =AG31*AJ31 -> 0 | AL31: 145 | AM31: 195
A32: 4 | B32: 2 | D32: Red 4007ES Hybrid Panel Buy America | E32: 4007-9101BA | AC32: 0 | AD32: 1 | AE32: Red 4007ES Hybrid Panel Buy America | AF32: 4007-9101BA | AG32: 0 | AH32: 0.145 | AI32: =AG32*AH32 -> 0 | AJ32: 0.195 | AK32: =AG32*AJ32 -> 0 | AL32: 145 | AM32: 195
A33: 4 | B33: 3 | C33: ★ | D33: Platinum 4007ES Hybrid Panel | E33: 4007-9102 | AC33: 0 | AD33: 1 | AE33: Platinum 4007ES Hybrid Panel | AF33: 4007-9102 | AG33: 0 | AH33: 0.145 | AI33: 0 | AJ33: 0.195 | AK33: 0 | AL33: 145 | AM33: 195
A34: 4 | B34: 4 | D34: Platinum 4007ES Hybrid Panel Buy America | E34: 4007-9102BA | AC34: 0 | AD34: 1 | AE34: Platinum 4007ES Hybrid Panel Buy America | AF34: 4007-9102BA | AG34: 0 | AH34: 0.145 | AI34: 0 | AJ34: 0.195 | AK34: 0 | AL34: 145 | AM34: 195
A35: 4 | B35: 5 | D35: Panel Mounted 48 LED Status Annunciator | E35: 4007-9805 | AC35: 0 | AE35: Panel Mounted 48 LED Status Annunciator | AF35: 4007-9805 | AG35: 0 | AH35: 0.01 | AI35: 0 | AJ35: 0.01 | AK35: 0 | AL35: 10 | AM35: 10
A36: 4 | B36: 6 | D36: Total Status Annunciator LEDs on in Alarm | E36: 0 | AC36: 0 | AE36: Total Status Annunciator LEDs on in Alarm | AG36: 0 | AH36: 0 | AI36: 0 | AJ36: 0.00175 | AK36: 0 | AM36: 1.75
A37: 4 | B37: 7 | C37: ★ | D37: Factory Fitted 8 Point Zone/Relay Card - FULLY LOADED | E37: 4007-9801 | AC37: 0 | AE37: Factory Fitted 8 Point Zone/Relay Card - FULLY LOADED | AF37: 4007-9801 | AG37: 0 | AH37: 0.083 | AI37: 0 | AJ37: 0.351 | AK37: 0 | AL37: 83 | AM37: 351
A38: 4 | B38: 8 | C38: ★ | D38: Factory Fitted 8 Point Zone/Relay Card - CARD ONLY | E38: 4007-9801 | AC38: 0 | AE38: Factory Fitted 8 Point Zone/Relay Card - CARD ONLY | AF38: 4007-9801 | AG38: 0 | AH38: 0.027 | AI38: 0 | AJ38: 0.027 | AK38: 0 | AL38: 27 | AM38: 27
A39: 4 | B39: 9 | C39: ★ | D39: Total Configured Class B Zones | E39: 0 | AC39: 0 | AE39: Total Configured Class B Zones | AG39: 0 | AH39: 0.011 | AI39: 0 | AJ39: 0.06 | AK39: 0 | AL39: 11 | AM39: 60
A40: 4 | B40: 10 | C40: ★ | D40: Total Cconfigured Class A Zones | E40: 0 | AC40: 0 | AE40: Total Cconfigured Class A Zones | AG40: 0 | AH40: 0.02 | AI40: 0 | AJ40: 0.069 | AK40: 0 | AL40: 20 | AM40: 69
A41: 4 | B41: 11 | C41: ★ | D41: Total Configured Relays De-Energized Normally | E41: 0 | AC41: 0 | AE41: Total Configured Relays De-Energized Normally | AG41: 0 | AH41: 0 | AI41: 0 | AJ41: 0.009 | AK41: 0 | AL41: 0 | AM41: 9
A42: 4 | B42: 12 | C42: ★ | D42: Total Configured Relays Energized Normally | E42: 0 | AC42: 0 | AE42: Total Configured Relays Energized Normally | AG42: 0 | AH42: 0.009 | AI42: 0 | AJ42: 0 | AK42: 0 | AL42: 9 | AM42: 0
A43: 4 | B43: 0 | C43: + | D43: HYBRID PANEL COMPATIBLE OPTIONAL CARDS | E43: 0 | AC43: 0 | AE43: HYBRID PANEL COMPATIBLE OPTIONAL CARDS | AG43: 0 | AH43: 0 | AI43: 0 | AJ43: 0 | AK43: 0
A44: 5 | B44: 1 | D44: 8 Point Zone/Relay Card - FULLY LOADED | E44: 4007-9801 | AC44: 0 | AE44: 8 Point Zone/Relay Card - FULLY LOADED | AF44: 4007-9801 | AG44: 0 | AH44: 0.083 | AI44: 0 | AJ44: 0.351 | AK44: 0 | AL44: 83 | AM44: 351
A45: 5 | B45: 2 | D45: 8 Point Zone/Relay Card - CARD ONLY | E45: 4007-9801 | AC45: 0 | AE45: 8 Point Zone/Relay Card - CARD ONLY | AF45: 4007-9801 | AG45: 0 | AH45: 0.027 | AI45: 0 | AJ45: 0.027 | AK45: 0 | AL45: 27 | AM45: 27
A46: 5 | B46: 3 | D46: Total Configured Class B Zones | E46: 0 | AC46: 0 | AE46: Total Configured Class B Zones | AG46: 0 | AH46: 0.011 | AI46: 0 | AJ46: 0.06 | AK46: 0 | AL46: 11 | AM46: 60
A47: 5 | B47: 4 | D47: Total Cconfigured Class A Zones | E47: 0 | AC47: 0 | AE47: Total Cconfigured Class A Zones | AG47: 0 | AH47: 0.02 | AI47: 0 | AJ47: 0.069 | AK47: 0 | AL47: 20 | AM47: 69
A48: 5 | B48: 5 | D48: Total Configured Relays De-Energized Normally | E48: 0 | AC48: 0 | AE48: Total Configured Relays De-Energized Normally | AG48: 0 | AH48: 0 | AI48: 0 | AJ48: 0.009 | AK48: 0 | AL48: 0 | AM48: 9
A49: 5 | B49: 6 | D49: Total Configured Relays Energized Normally | E49: 0 | AC49: 0 | AE49: Total Configured Relays Energized Normally | AG49: 0 | AH49: 0.009 | AI49: 0 | AJ49: 0 | AK49: 0 | AL49: 9 | AM49: 0
A50: 5 | B50: 7 | D50: 25 VDC Regulator Module with 1 x 8 Zone Relay Card | E50: 4007-9802 | AC50: 0 | AE50: 25 VDC Regulator Module with 1 x 8 Zone Relay Card | AF50: 4007-9802 | AG50: 0 | AH50: 0.19 | AI50: 0 | AJ50: 0.445 | AK50: 0 | AL50: 190 | AM50: 445
A51: 5 | B51: 8 | D51: 25 VDC Regulator Module with 2 x 8 Zone Relay Cards | E51: 4007-9802 | AC51: 0 | AE51: 25 VDC Regulator Module with 2 x 8 Zone Relay Cards | AF51: 4007-9802 | AG51: 0 | AH51: 0.29 | AI51: 0 | AJ51: 0.801 | AK51: 0 | AL51: 290 | AM51: 801
A52: 5 | B52: 9 | D52: 25 VDC Regulator Module with 3 x 8 Zone Relay Cards | E52: 4007-9802 | AC52: 0 | AE52: 25 VDC Regulator Module with 3 x 8 Zone Relay Cards | AF52: 4007-9802 | AG52: 0 | AH52: 0.39 | AI52: 0 | AJ52: 1.156 | AK52: 0 | AL52: 390 | AM52: 1156
A53: 5 | B53: 10 | D53: IDNet+ Loop Expansion Module | E53: 4007-9803 | AC53: 0 | AE53: IDNet+ Loop Expansion Module | AF53: 4007-9803 | AG53: 0 | AH53: 0 | AI53: 0 | AJ53: 0 | AK53: 0 | AL53: 0 | AM53: 0
A54: 5 | B54: 11 | D54: Dual RS-232 Interface Module | E54: 4007-9812 | AC54: 0 | AE54: Dual RS-232 Interface Module | AF54: 4007-9812 | AG54: 0 | AH54: 0.06 | AI54: 0 | AJ54: 0.06 | AK54: 0 | AL54: 60 | AM54: 60
A55: 5 | B55: 12 | D55: Relay Module Alarm, Supervisory and Trouble | E55: 4007-9809 | AC55: 0 | AE55: Relay Module Alarm, Supervisory and Trouble | AF55: 4007-9809 | AG55: 0 | AH55: 0.015 | AI55: 0 | AJ55: 0.037 | AK55: 0 | AL55: 15 | AM55: 37
A56: 5 | B56: 13 | D56: City Circuit Module with Disconnect Switch | E56: 4007-9807 | AC56: 0 | AE56: City Circuit Module with Disconnect Switch | AF56: 4007-9807 | AG56: 0 | AH56: 0.02 | AI56: 0 | AJ56: 0.036 | AK56: 0 | AL56: 20 | AM56: 36
A57: 5 | B57: 14 | D57: City Circuit Module without Disconnect Switch | E57: 4007-9808 | AC57: 0 | AE57: City Circuit Module without Disconnect Switch | AF57: 4007-9808 | AG57: 0 | AH57: 0.02 | AI57: 0 | AJ57: 0.036 | AK57: 0 | AL57: 20 | AM57: 36
A58: 4 | B58: 0 | C58: + | D58: COMMUNICATIONS | E58: 0 | AC58: 0 | AE58: COMMUNICATIONS | AG58: 0 | AH58: 0 | AI58: 0 | AJ58: 0 | AK58: 0
A59: 5 | B59: 1 | C59: ★ | D59: SDACT Module for Point or Event Reporting | E59: 4007-9806 | AC59: 0 | AE59: SDACT Module for Point or Event Reporting | AF59: 4007-9806 | AG59: 0 | AH59: 0.03 | AI59: 0 | AJ59: 0.04 | AK59: 0 | AL59: 30 | AM59: 40
A60: 5 | B60: 2 | C60: ★ | D60: IP Communicator Connected Services Gateway | E60: 4007-2504 | AC60: 0 | AE60: IP Communicator Connected Services Gateway | AF60: 4007-2504 | AG60: 0 | AH60: 0.125 | AI60: 0 | AJ60: 0.125 | AK60: 0 | AL60: 125 | AM60: 125
A61: 5 | B61: 3 | C61: ★ | D61: GSM 4G/LTE Cellular Module Kit for Internal Mount | E61: 4007-6416 | AC61: 0 | AE61: GSM 4G/LTE Cellular Module Kit for Internal Mount | AF61: 4007-6416 | AG61: 0 | AH61: 0.02 | AI61: 0 | AJ61: 0.02 | AK61: 0 | AL61: 20 | AM61: 20
A62: 4 | B62: 0 | C62: + | D62: ESNET | E62: 0 | AC62: 0 | AE62: ESNET | AG62: 0 | AH62: 0 | AI62: 0 | AJ62: 0 | AK62: 0
A63: 5 | B63: 1 | D63: 4007ES ESNet Network Card | E63: 4007-9817 | AC63: 0 | AE63: 4007ES ESNet Network Card | AF63: 4007-9817 | AG63: 0 | AH63: 0.12 | AI63: 0 | AJ63: 0.12 | AK63: 0 | AL63: 120 | AM63: 120
A64: 5 | B64: 2 | D64: ESNet Ethernet media card | E64: 4007-6306 | AC64: 0 | AE64: ESNet Ethernet media card | AF64: 4007-6306 | AG64: 0 | AH64: 0.02 | AI64: 0 | AJ64: 0.02 | AK64: 0 | AL64: 20 | AM64: 20
A65: 5 | B65: 3 | D65: ESNet Single-mode fiber media card | E65: 4007-6308 | AC65: 0 | AE65: ESNet Single-mode fiber media card | AF65: 4007-6308 | AG65: 0 | AH65: 0.135 | AI65: 0 | AJ65: 0.135 | AK65: 0 | AL65: 135 | AM65: 135
A66: 5 | B66: 4 | D66: ESNet Multi-mode fiber media card | E66: 4007-6309 | AC66: 0 | AE66: ESNet Multi-mode fiber media card | AF66: 4007-6309 | AG66: 0 | AH66: 0.135 | AI66: 0 | AJ66: 0.135 | AK66: 0 | AL66: 135 | AM66: 135
A67: 5 | B67: 5 | D67: ESNet DSL (copper) media card | E67: 4007-6307 | AC67: 0 | AE67: ESNet DSL (copper) media card | AF67: 4007-6307 | AG67: 0 | AH67: 0.155 | AI67: 0 | AJ67: 0.155 | AK67: 0 | AL67: 155 | AM67: 155
A68: 4 | B68: 0 | C68: + | D68: REMOTE ANNUNCIATORS | E68: 0 | AC68: 0 | AE68: REMOTE ANNUNCIATORS | AG68: 0 | AH68: 0 | AI68: 0 | AJ68: 0 | AK68: 0
A69: 5 | B69: 1 | C69: ★ | D69: =REPT(" ",A69-1)&AE69 -> Red Color Touchscreen Annunciator | E69: 4606-9202 | AC69: 0 | AE69: Red Color Touchscreen Annunciator | AF69: 4606-9202 | AG69: 0 | AH69: 0.07 | AI69: 0 | AJ69: 0.124 | AK69: 0 | AL69: 70 | AM69: 124
A70: 5 | B70: =IF(OR(C70="+",C70="-"),0,B69+1) -> 2 | C70: ★ | D70: Platinum Color Touchscreen Annunciator | E70: 4606-9205 | AC70: 0 | AE70: Platinum Color Touchscreen Annunciator | AF70: 4606-9205 | AG70: 0 | AH70: 0.07 | AI70: 0 | AJ70: 0.124 | AK70: 0 | AL70: 70 | AM70: 124
A71: 5 | B71: 3 | D71: Status Command Unit | E71: 4602-9101 | AC71: 0 | AE71: Status Command Unit | AF71: 4602-9101 | AG71: 0 | AH71: 0.036 | AI71: 0 | AJ71: 0.055 | AK71: 0 | AL71: 36 | AM71: 55
A72: 5 | B72: 4 | D72: Remote Command Unit | E72: 4602-9102 | AC72: 0 | AE72: Remote Command Unit | AF72: 4602-9102 | AG72: 0 | AH72: 0.04 | AI72: 0 | AJ72: 0.08 | AK72: 0 | AL72: 40 | AM72: 80
A73: 3 | B73: 0 | C73: + | D73: 4007ES HYBRID/IDNAC IDNET WITH ADDRESSABLE NOTIFICATION | E73: =AF73 -> 0 | AC73: =SUM(G73:W73) -> 0 | AE73: 4007ES HYBRID/IDNAC IDNET WITH ADDRESSABLE NOTIFICATION | AG73: 0 | AH73: 0 | AI73: 0 | AJ73: 0 | AK73: 0
A74: 4 | B74: 1 | C74: ★ | D74: Red 4007ES IDNAC Panel | E74: 4007-9201 | AC74: 0 | AD74: 1 | AE74: Red 4007ES IDNAC Panel | AF74: 4007-9201 | AG74: 0 | AH74: 0.18 | AI74: 0 | AJ74: 0.185 | AK74: 0 | AL74: 180 | AM74: 185
A75: 4 | B75: 2 | D75: Red 4007ES IDNAC Panel Buy America | E75: 4007-9201BA | AC75: 0 | AD75: 1 | AE75: Red 4007ES IDNAC Panel Buy America | AF75: 4007-9201BA | AG75: 0 | AH75: 0.18 | AI75: 0 | AJ75: 0.185 | AK75: 0 | AL75: 180 | AM75: 185
A76: 4 | B76: 3 | C76: ★ | D76: Platinum 4007ES IDNAC Panel | E76: 4007-9202 | AC76: 0 | AD76: 1 | AE76: Platinum 4007ES IDNAC Panel | AF76: 4007-9202 | AG76: 0 | AH76: 0.18 | AI76: 0 | AJ76: 0.185 | AK76: 0 | AL76: 180 | AM76: 185
A77: 4 | B77: 4 | D77: Platinum 4007ES IDNAC Panel Buy America | E77: 4007-9202BA | AC77: 0 | AD77: 1 | AE77: Platinum 4007ES IDNAC Panel Buy America | AF77: 4007-9202BA | AG77: 0 | AH77: 0.18 | AI77: 0 | AJ77: 0.185 | AK77: 0 | AL77: 180 | AM77: 185
A78: 4 | B78: 5 | D78: Panel Mounted 48 LED Status Annunciator | E78: 4007-9805 | AC78: 0 | AE78: Panel Mounted 48 LED Status Annunciator | AF78: 4007-9805 | AG78: 0 | AH78: 0.01 | AI78: 0 | AJ78: 0.01 | AK78: 0 | AL78: 10 | AM78: 10
A79: 4 | B79: 6 | D79: Total Status Annunciator LEDs on in Alarm | E79: 0 | AC79: 0 | AE79: Total Status Annunciator LEDs on in Alarm | AG79: 0 | AH79: 0 | AI79: 0 | AJ79: 0.00175 | AK79: 0 | AM79: 1.75
A80: 4 | B80: 0 | C80: + | D80: HYBRID/IDNAC PANEL COMPATIBLE OPTIONAL CARDS | E80: 0 | AC80: 0 | AE80: HYBRID/IDNAC PANEL COMPATIBLE OPTIONAL CARDS | AG80: 0 | AH80: 0 | AI80: 0 | AJ80: 0 | AK80: 0
A81: 5 | B81: 1 | D81: 8 Point Zone/Relay Card - FULLY LOADED | E81: 4007-9801 | AC81: 0 | AE81: 8 Point Zone/Relay Card - FULLY LOADED | AF81: 4007-9801 | AG81: 0 | AH81: 0.083 | AI81: 0 | AJ81: 0.351 | AK81: 0 | AL81: 83 | AM81: 351
A82: 5 | B82: 2 | D82: 8 Point Zone/Relay Card - CARD ONLY | E82: 4007-9801 | AC82: 0 | AE82: 8 Point Zone/Relay Card - CARD ONLY | AF82: 4007-9801 | AG82: 0 | AH82: 0.027 | AI82: 0 | AJ82: 0.027 | AK82: 0 | AL82: 27 | AM82: 27
A83: 5 | B83: 3 | D83: Total Configured Class B Zones | E83: 0 | AC83: 0 | AE83: Total Configured Class B Zones | AG83: 0 | AH83: 0.011 | AI83: 0 | AJ83: 0.06 | AK83: 0 | AL83: 11 | AM83: 60
A84: 5 | B84: 4 | D84: Total Cconfigured Class A Zones | E84: 0 | AC84: 0 | AE84: Total Cconfigured Class A Zones | AG84: 0 | AH84: 0.02 | AI84: 0 | AJ84: 0.069 | AK84: 0 | AL84: 20 | AM84: 69
A85: 5 | B85: 5 | D85: Total Configured Relays De-Energized Normally | E85: 0 | AC85: 0 | AE85: Total Configured Relays De-Energized Normally | AG85: 0 | AH85: 0 | AI85: 0 | AJ85: 0.009 | AK85: 0 | AL85: 0 | AM85: 9
A86: 5 | B86: 6 | D86: Total Configured Relays Energized Normally | E86: 0 | AC86: 0 | AE86: Total Configured Relays Energized Normally | AG86: 0 | AH86: 0.009 | AI86: 0 | AJ86: 0 | AK86: 0 | AL86: 9 | AM86: 0
A87: 5 | B87: 7 | D87: 25 VDC Regulator Module with 1 x 8 Zone Relay Card | E87: 4007-9802 | AC87: 0 | AE87: 25 VDC Regulator Module with 1 x 8 Zone Relay Card | AF87: 4007-9802 | AG87: 0 | AH87: 0.19 | AI87: 0 | AJ87: 0.445 | AK87: 0 | AL87: 190 | AM87: 445
A88: 5 | B88: 8 | D88: 25 VDC Regulator Module with 2 x 8 Zone Relay Cards | E88: 4007-9802 | AC88: 0 | AE88: 25 VDC Regulator Module with 2 x 8 Zone Relay Cards | AF88: 4007-9802 | AG88: 0 | AH88: 0.29 | AI88: 0 | AJ88: 0.801 | AK88: 0 | AL88: 290 | AM88: 801
A89: 5 | B89: 9 | D89: 25 VDC Regulator Module with 3 x 8 Zone Relay Cards | E89: 4007-9802 | AC89: 0 | AE89: 25 VDC Regulator Module with 3 x 8 Zone Relay Cards | AF89: 4007-9802 | AG89: 0 | AH89: 0.39 | AI89: 0 | AJ89: 1.156 | AK89: 0 | AL89: 390 | AM89: 1156
A90: 5 | B90: 10 | D90: IDNet+ Loop Expansion Module | E90: 4007-9803 | AC90: 0 | AE90: IDNet+ Loop Expansion Module | AF90: 4007-9803 | AG90: 0 | AH90: 0 | AI90: 0 | AJ90: 0 | AK90: 0 | AL90: 0 | AM90: 0
A91: 5 | B91: 11 | D91: Dual Class A Isolator Card | E91: 4007-9804 | AC91: 0 | AE91: Dual Class A Isolator Card | AF91: 4007-9804 | AG91: 0 | AH91: 0.0127 | AI91: 0 | AJ91: 0.025 | AK91: 0 | AL91: 12.7 | AM91: 25
A92: 5 | B92: 12 | D92: Dual RS-232 Interface Module | E92: 4007-9812 | AC92: 0 | AE92: Dual RS-232 Interface Module | AF92: 4007-9812 | AG92: 0 | AH92: 0.06 | AI92: 0 | AJ92: 0.06 | AK92: 0 | AL92: 60 | AM92: 60
A93: 5 | B93: 13 | D93: Relay Module Alarm, Supervisory and Trouble | E93: 4007-9809 | AC93: 0 | AE93: Relay Module Alarm, Supervisory and Trouble | AF93: 4007-9809 | AG93: 0 | AH93: 0.015 | AI93: 0 | AJ93: 0.037 | AK93: 0 | AL93: 15 | AM93: 37
A94: 5 | B94: 14 | D94: City Circuit Module with Disconnect Switch | E94: 4007-9807 | AC94: 0 | AE94: City Circuit Module with Disconnect Switch | AF94: 4007-9807 | AG94: 0 | AH94: 0.02 | AI94: 0 | AJ94: 0.036 | AK94: 0 | AL94: 20 | AM94: 36
A95: 5 | B95: 15 | D95: City Circuit Module without Disconnect Switch | E95: 4007-9808 | AC95: 0 | AE95: City Circuit Module without Disconnect Switch | AF95: 4007-9808 | AG95: 0 | AH95: 0.02 | AI95: 0 | AJ95: 0.036 | AK95: 0 | AL95: 20 | AM95: 36
A96: 4 | B96: 0 | C96: + | D96: COMMUNICATIONS | E96: 0 | AC96: 0 | AE96: COMMUNICATIONS | AG96: 0 | AH96: 0 | AI96: 0 | AJ96: 0 | AK96: 0
A97: 5 | B97: 1 | C97: ★ | D97: SDACT Module for Point or Event Reporting | E97: 4007-9806 | AC97: 0 | AE97: SDACT Module for Point or Event Reporting | AF97: 4007-9806 | AG97: 0 | AH97: =AL97/1000 -> 0.03 | AI97: 0 | AJ97: =AM97/1000 -> 0.04 | AK97: 0 | AL97: 30 | AM97: 40
A98: 5 | B98: 2 | C98: ★ | D98: IP Communicator Connected Services Gateway | E98: 4007-2504 | AC98: 0 | AE98: IP Communicator Connected Services Gateway | AF98: 4007-2504 | AG98: 0 | AH98: 0.125 | AI98: =AG98*AH98 -> 0 | AJ98: 0.125 | AK98: =AG98*AJ98 -> 0 | AL98: 125 | AM98: 125
A99: 5 | B99: 3 | C99: ★ | D99: GSM 4G/LTE Cellular Module Kit for Internal Mount | E99: 4007-6416 | AC99: 0 | AE99: GSM 4G/LTE Cellular Module Kit for Internal Mount | AF99: 4007-6416 | AG99: 0 | AH99: 0.02 | AI99: 0 | AJ99: 0.02 | AK99: 0 | AL99: 20 | AM99: 20
A100: 4 | B100: 0 | C100: + | D100: ESNET | E100: 0 | AC100: 0 | AE100: ESNET | AG100: 0 | AH100: 0 | AI100: 0 | AJ100: 0 | AK100: 0
A101: 5 | B101: 1 | D101: 4007ES ESNet Network Card | E101: 4007-9817 | AC101: 0 | AE101: 4007ES ESNet Network Card | AF101: 4007-9817 | AG101: 0 | AH101: 0.12 | AI101: 0 | AJ101: 0.12 | AK101: 0 | AL101: 120 | AM101: 120
A102: 5 | B102: 2 | D102: ESNet Ethernet media card | E102: 4007-6306 | AC102: 0 | AE102: ESNet Ethernet media card | AF102: 4007-6306 | AG102: 0 | AH102: 0.02 | AI102: 0 | AJ102: 0.02 | AK102: 0 | AL102: 20 | AM102: 20
A103: 5 | B103: 3 | D103: ESNet Single-mode fiber media card | E103: 4007-6308 | AC103: 0 | AE103: ESNet Single-mode fiber media card | AF103: 4007-6308 | AG103: 0 | AH103: 0.135 | AI103: 0 | AJ103: 0.135 | AK103: 0 | AL103: 135 | AM103: 135
A104: 5 | B104: 4 | D104: ESNet Multi-mode fiber media card | E104: 4007-6309 | AC104: 0 | AE104: ESNet Multi-mode fiber media card | AF104: 4007-6309 | AG104: 0 | AH104: 0.135 | AI104: 0 | AJ104: 0.135 | AK104: 0 | AL104: 135 | AM104: 135
A105: 5 | B105: 5 | D105: ESNet DSL (copper) media card | E105: 4007-6307 | AC105: 0 | AE105: ESNet DSL (copper) media card | AF105: 4007-6307 | AG105: 0 | AH105: 0.155 | AI105: 0 | AJ105: 0.155 | AK105: 0 | AL105: 155 | AM105: 155
A106: 4 | B106: 0 | C106: + | D106: REMOTE ANNUNCIATORS | E106: 0 | AC106: 0 | AE106: REMOTE ANNUNCIATORS | AG106: 0 | AH106: 0 | AI106: 0 | AJ106: 0 | AK106: 0
A107: 5 | B107: 1 | C107: ★ | D107: Red Color Touchscreen Annunciator | E107: 4606-9202 | AC107: 0 | AE107: Red Color Touchscreen Annunciator | AF107: 4606-9202 | AG107: 0 | AH107: 0.07 | AI107: 0 | AJ107: 0.124 | AK107: 0 | AL107: 70 | AM107: 124
A108: 5 | B108: 2 | C108: ★ | D108: Platinum Color Touchscreen Annunciator | E108: 4606-9205 | AC108: 0 | AE108: Platinum Color Touchscreen Annunciator | AF108: 4606-9205 | AG108: 0 | AH108: 0.07 | AI108: 0 | AJ108: 0.124 | AK108: 0 | AL108: 70 | AM108: 124
A109: 5 | B109: 3 | D109: Status Command Unit | E109: 4602-9101 | AC109: 0 | AE109: Status Command Unit | AF109: 4602-9101 | AG109: 0 | AH109: 0.036 | AI109: 0 | AJ109: 0.055 | AK109: 0 | AL109: 36 | AM109: 55
A110: 5 | B110: 4 | D110: Remote Command Unit | E110: 4602-9102 | AC110: 0 | AE110: Remote Command Unit | AF110: 4602-9102 | AG110: 0 | AH110: 0.04 | AI110: 0 | AJ110: 0.08 | AK110: 0 | AL110: 40 | AM110: 80
A111: 3 | B111: 0 | C111: + | D111: 4007ES HYBRID PANEL MX LOOP WITH 4 CONVENTIONAL NACS | E111: 0 | AC111: 0 | AE111: 4007ES HYBRID PANEL MX LOOP WITH 4 CONVENTIONAL NACS | AG111: 0 | AH111: 0 | AI111: 0 | AJ111: 0 | AK111: 0
A112: 4 | B112: 1 | C112: ★ | D112: Red 4007ES Hybrid Panel | E112: 4007-9301 | AC112: 0 | AD112: 1 | AE112: Red 4007ES Hybrid Panel | AF112: 4007-9301 | AG112: 0 | AH112: 0.19 | AI112: 0 | AJ112: 0.235 | AK112: 0 | AL112: 190 | AM112: 235
A113: 4 | B113: 2 | C113: ★ | D113: Platinum 4007ES Hybrid Panel | E113: 4007-9302 | AC113: 0 | AD113: 1 | AE113: Platinum 4007ES Hybrid Panel | AF113: 4007-9302 | AG113: 0 | AH113: 0.19 | AI113: 0 | AJ113: 0.235 | AK113: 0 | AL113: 190 | AM113: 235
A114: 4 | B114: 3 | D114: Panel Mounted 48 LED Status Annunciator | E114: 4007-9805 | AC114: 0 | AE114: Panel Mounted 48 LED Status Annunciator | AF114: 4007-9805 | AG114: 0 | AH114: 0.01 | AI114: 0 | AJ114: 0.01 | AK114: 0 | AL114: 10 | AM114: 10
A115: 4 | B115: 4 | D115: Total Status Annunciator LEDs on in Alarm | E115: 0 | AC115: 0 | AE115: Total Status Annunciator LEDs on in Alarm | AG115: 0 | AH115: 0 | AI115: 0 | AJ115: 0.00175 | AK115: 0 | AM115: 1.75
A116: 4 | B116: 0 | C116: + | D116: HYBRID PANEL COMPATIBLE OPTIONAL CARDS | E116: 0 | AC116: 0 | AE116: HYBRID PANEL COMPATIBLE OPTIONAL CARDS | AG116: 0 | AH116: 0 | AI116: 0 | AJ116: 0 | AK116: 0
A117: 5 | B117: 1 | D117: 8 Point Zone/Relay Card - FULLY LOADED | E117: 4007-9801 | AC117: 0 | AE117: 8 Point Zone/Relay Card - FULLY LOADED | AF117: 4007-9801 | AG117: 0 | AH117: 0.083 | AI117: 0 | AJ117: 0.351 | AK117: 0 | AL117: 83 | AM117: 351
A118: 5 | B118: 2 | D118: 8 Point Zone/Relay Card - CARD ONLY | E118: 4007-9801 | AC118: 0 | AE118: 8 Point Zone/Relay Card - CARD ONLY | AF118: 4007-9801 | AG118: 0 | AH118: 0.027 | AI118: 0 | AJ118: 0.027 | AK118: 0 | AL118: 27 | AM118: 27
A119: 5 | B119: 3 | D119: Total Configured Class B Zones | E119: 0 | AC119: 0 | AE119: Total Configured Class B Zones | AG119: 0 | AH119: 0.011 | AI119: 0 | AJ119: 0.06 | AK119: 0 | AL119: 11 | AM119: 60
A120: 5 | B120: 4 | D120: Total Cconfigured Class A Zones | E120: 0 | AC120: 0 | AE120: Total Cconfigured Class A Zones | AG120: 0 | AH120: 0.02 | AI120: 0 | AJ120: 0.069 | AK120: 0 | AL120: 20 | AM120: 69
A121: 5 | B121: 5 | D121: Total Configured Relays De-Energized Normally | E121: 0 | AC121: 0 | AE121: Total Configured Relays De-Energized Normally | AG121: 0 | AH121: 0 | AI121: 0 | AJ121: 0.009 | AK121: 0 | AL121: 0 | AM121: 9
A122: 5 | B122: 6 | D122: Total Configured Relays Energized Normally | E122: 0 | AC122: 0 | AE122: Total Configured Relays Energized Normally | AG122: 0 | AH122: 0.009 | AI122: 0 | AJ122: 0 | AK122: 0 | AL122: 9 | AM122: 0
A123: 5 | B123: 7 | D123: 25 VDC Regulator Module with 1 x 8 Zone Relay Card | E123: 4007-9802 | AC123: 0 | AE123: 25 VDC Regulator Module with 1 x 8 Zone Relay Card | AF123: 4007-9802 | AG123: 0 | AH123: 0.19 | AI123: 0 | AJ123: 0.445 | AK123: 0 | AL123: 190 | AM123: 445
A124: 5 | B124: 8 | D124: 25 VDC Regulator Module with 2 x 8 Zone Relay Cards | E124: 4007-9802 | AC124: 0 | AE124: 25 VDC Regulator Module with 2 x 8 Zone Relay Cards | AF124: 4007-9802 | AG124: 0 | AH124: 0.29 | AI124: 0 | AJ124: 0.801 | AK124: 0 | AL124: 290 | AM124: 801
A125: 5 | B125: 9 | D125: 25 VDC Regulator Module with 3 x 8 Zone Relay Cards | E125: 4007-9802 | AC125: 0 | AE125: 25 VDC Regulator Module with 3 x 8 Zone Relay Cards | AF125: 4007-9802 | AG125: 0 | AH125: 0.39 | AI125: 0 | AJ125: 1.156 | AK125: 0 | AL125: 390 | AM125: 1156
A126: 5 | B126: 10 | D126: ESMX Optional Loop Mezzanine Card | E126: 4007-6312 | AC126: 0 | AE126: ESMX Optional Loop Mezzanine Card | AF126: 4007-6312 | AG126: 0 | AH126: 0 | AI126: 0 | AJ126: 0 | AK126: 0 | AL126: 0 | AM126: 0
A127: 5 | B127: 11 | D127: Dual RS-232 Interface Module | E127: 4007-9812 | AC127: 0 | AE127: Dual RS-232 Interface Module | AF127: 4007-9812 | AG127: 0 | AH127: 0.06 | AI127: 0 | AJ127: 0.06 | AK127: 0 | AL127: 60 | AM127: 60
A128: 5 | B128: 12 | D128: Relay Module Alarm, Supervisory and Trouble | E128: 4007-9809 | AC128: 0 | AE128: Relay Module Alarm, Supervisory and Trouble | AF128: 4007-9809 | AG128: 0 | AH128: 0.015 | AI128: 0 | AJ128: 0.037 | AK128: 0 | AL128: 15 | AM128: 37
A129: 5 | B129: 13 | D129: City Circuit Module with Disconnect Switch | E129: 4007-9807 | AC129: 0 | AE129: City Circuit Module with Disconnect Switch | AF129: 4007-9807 | AG129: 0 | AH129: 0.02 | AI129: 0 | AJ129: 0.036 | AK129: 0 | AL129: 20 | AM129: 36
A130: 5 | B130: 14 | D130: City Circuit Module without Disconnect Switch | E130: 4007-9808 | AC130: 0 | AE130: City Circuit Module without Disconnect Switch | AF130: 4007-9808 | AG130: 0 | AH130: 0.02 | AI130: 0 | AJ130: 0.036 | AK130: 0 | AL130: 20 | AM130: 36
A131: 4 | B131: 0 | C131: + | D131: COMMUNICATIONS | E131: 0 | AC131: 0 | AE131: COMMUNICATIONS | AG131: 0 | AH131: 0 | AI131: 0 | AJ131: 0 | AK131: 0
A132: 5 | B132: 1 | C132: ★ | D132: SDACT Module for Point or Event Reporting | E132: 4007-9806 | AC132: 0 | AE132: SDACT Module for Point or Event Reporting | AF132: 4007-9806 | AG132: 0 | AH132: 0.03 | AI132: 0 | AJ132: 0.04 | AK132: 0 | AL132: 30 | AM132: 40
A133: 5 | B133: 2 | C133: ★ | D133: IP Communicator Connected Services Gateway | E133: 4007-2504 | AC133: 0 | AE133: IP Communicator Connected Services Gateway | AF133: 4007-2504 | AG133: 0 | AH133: 0.125 | AI133: 0 | AJ133: 0.125 | AK133: 0 | AL133: 125 | AM133: 125
A134: 5 | B134: =IF(OR(C134="+",C134="-"),0,B133+1) -> 3 | C134: ★ | D134: GSM 4G/LTE Cellular Module Kit for Internal Mount | E134: 4007-6416 | AC134: 0 | AE134: GSM 4G/LTE Cellular Module Kit for Internal Mount | AF134: 4007-6416 | AG134: 0 | AH134: 0.02 | AI134: 0 | AJ134: 0.02 | AK134: 0 | AL134: 20 | AM134: 20
A135: 4 | B135: 0 | C135: + | D135: ESNET | E135: 0 | AC135: 0 | AE135: ESNET | AG135: 0 | AH135: 0 | AI135: 0 | AJ135: 0 | AK135: 0
A136: 5 | B136: 1 | D136: 4007ES ESNet Network Card | E136: 4007-9817 | AC136: 0 | AE136: 4007ES ESNet Network Card | AF136: 4007-9817 | AG136: 0 | AH136: 0.12 | AI136: 0 | AJ136: 0.12 | AK136: 0 | AL136: 120 | AM136: 120
A137: 5 | B137: 2 | D137: =REPT(" ",A137-1)&AE137 -> ESNet Ethernet media card | E137: =AF137 -> 4007-6306 | AC137: =SUM(G137:W137) -> 0 | AE137: ESNet Ethernet media card | AF137: 4007-6306 | AG137: 0 | AH137: 0.02 | AI137: 0 | AJ137: 0.02 | AK137: 0 | AL137: 20 | AM137: 20
A138: 5 | B138: 3 | D138: ESNet Single-mode fiber media card | E138: 4007-6308 | AC138: 0 | AE138: ESNet Single-mode fiber media card | AF138: 4007-6308 | AG138: 0 | AH138: 0.135 | AI138: 0 | AJ138: 0.135 | AK138: 0 | AL138: 135 | AM138: 135
A139: 5 | B139: 4 | D139: ESNet Multi-mode fiber media card | E139: 4007-6309 | AC139: 0 | AE139: ESNet Multi-mode fiber media card | AF139: 4007-6309 | AG139: 0 | AH139: 0.135 | AI139: 0 | AJ139: 0.135 | AK139: 0 | AL139: 135 | AM139: 135
A140: 5 | B140: 5 | D140: ESNet DSL (copper) media card | E140: 4007-6307 | AC140: 0 | AE140: ESNet DSL (copper) media card | AF140: 4007-6307 | AG140: 0 | AH140: 0.155 | AI140: 0 | AJ140: 0.155 | AK140: 0 | AL140: 155 | AM140: 155
A141: 4 | B141: 0 | C141: + | D141: REMOTE ANNUNCIATORS | E141: 0 | AC141: 0 | AE141: REMOTE ANNUNCIATORS | AG141: 0 | AH141: 0 | AI141: 0 | AJ141: 0 | AK141: 0
A142: 5 | B142: 1 | C142: ★ | D142: Red Color Touchscreen Annunciator | E142: 4606-9202 | AC142: 0 | AE142: Red Color Touchscreen Annunciator | AF142: 4606-9202 | AG142: 0 | AH142: 0.07 | AI142: 0 | AJ142: 0.124 | AK142: 0 | AL142: 70 | AM142: 124
A143: 5 | B143: 2 | C143: ★ | D143: Platinum Color Touchscreen Annunciator | E143: 4606-9205 | AC143: 0 | AE143: Platinum Color Touchscreen Annunciator | AF143: 4606-9205 | AG143: 0 | AH143: 0.07 | AI143: 0 | AJ143: 0.124 | AK143: 0 | AL143: 70 | AM143: 124
A144: 5 | B144: 3 | D144: Status Command Unit | E144: 4602-9101 | AC144: 0 | AE144: Status Command Unit | AF144: 4602-9101 | AG144: 0 | AH144: 0.036 | AI144: 0 | AJ144: 0.055 | AK144: 0 | AL144: 36 | AM144: 55
A145: 5 | B145: 4 | D145: Remote Command Unit | E145: 4602-9102 | AC145: 0 | AE145: Remote Command Unit | AF145: 4602-9102 | AG145: 0 | AH145: 0.04 | AI145: 0 | AJ145: 0.08 | AK145: 0 | AL145: 40 | AM145: 80
A146: 3 | B146: 0 | C146: + | D146: 4007ES HYBRID/IDNAC MX LOOP WITH ADDRESSABLE NOTIFICATION | E146: 0 | AC146: 0 | AE146: 4007ES HYBRID/IDNAC MX LOOP WITH ADDRESSABLE NOTIFICATION | AG146: 0 | AH146: 0 | AI146: 0 | AJ146: 0 | AK146: 0
A147: 4 | B147: 1 | C147: ★ | D147: Red 4007ES IDNAC Panel | E147: 4007-9401 | AC147: 0 | AD147: 1 | AE147: Red 4007ES IDNAC Panel | AF147: 4007-9401 | AG147: 0 | AH147: 0.19 | AI147: 0 | AJ147: 0.29 | AK147: 0 | AL147: 190 | AM147: 290
A148: 4 | B148: 2 | C148: ★ | D148: Platinum 4007ES IDNAC Panel | E148: 4007-9402 | AC148: 0 | AD148: 1 | AE148: Platinum 4007ES IDNAC Panel | AF148: 4007-9402 | AG148: 0 | AH148: 0.19 | AI148: 0 | AJ148: 0.29 | AK148: 0 | AL148: 190 | AM148: 290
A149: 4 | B149: 3 | D149: Panel Mounted 48 LED Status Annunciator | E149: 4007-9805 | AC149: 0 | AE149: Panel Mounted 48 LED Status Annunciator | AF149: 4007-9805 | AG149: 0 | AH149: 0.01 | AI149: 0 | AJ149: 0.01 | AK149: 0 | AL149: 10 | AM149: 10
A150: 4 | B150: 4 | D150: Total Status Annunciator LEDs on in Alarm | E150: 0 | AC150: 0 | AE150: Total Status Annunciator LEDs on in Alarm | AG150: 0 | AH150: 0 | AI150: 0 | AJ150: 0.00175 | AK150: 0 | AM150: 1.75
A151: 4 | B151: 0 | C151: + | D151: HYBRID/IDNAC PANEL COMPATIBLE OPTIONAL CARDS | E151: 0 | AC151: 0 | AE151: HYBRID/IDNAC PANEL COMPATIBLE OPTIONAL CARDS | AG151: 0 | AH151: 0 | AI151: 0 | AJ151: 0 | AK151: 0
A152: 5 | B152: 1 | D152: 8 Point Zone/Relay Card - FULLY LOADED | E152: 4007-9801 | AC152: 0 | AE152: 8 Point Zone/Relay Card - FULLY LOADED | AF152: 4007-9801 | AG152: 0 | AH152: 0.083 | AI152: 0 | AJ152: 0.351 | AK152: 0 | AL152: 83 | AM152: 351
A153: 5 | B153: 2 | D153: 8 Point Zone/Relay Card - CARD ONLY | E153: 4007-9801 | AC153: 0 | AE153: 8 Point Zone/Relay Card - CARD ONLY | AF153: 4007-9801 | AG153: 0 | AH153: 0.027 | AI153: 0 | AJ153: 0.027 | AK153: 0 | AL153: 27 | AM153: 27
A154: 5 | B154: 3 | D154: Total Configured Class B Zones | E154: 0 | AC154: 0 | AE154: Total Configured Class B Zones | AG154: 0 | AH154: 0.011 | AI154: 0 | AJ154: 0.06 | AK154: 0 | AL154: 11 | AM154: 60
A155: 5 | B155: 4 | D155: Total Cconfigured Class A Zones | E155: 0 | AC155: 0 | AE155: Total Cconfigured Class A Zones | AG155: 0 | AH155: 0.02 | AI155: 0 | AJ155: 0.069 | AK155: 0 | AL155: 20 | AM155: 69
A156: 5 | B156: 5 | D156: Total Configured Relays De-Energized Normally | E156: 0 | AC156: 0 | AE156: Total Configured Relays De-Energized Normally | AG156: 0 | AH156: 0 | AI156: 0 | AJ156: 0.009 | AK156: 0 | AL156: 0 | AM156: 9
A157: 5 | B157: 6 | D157: Total Configured Relays Energized Normally | E157: 0 | AC157: 0 | AE157: Total Configured Relays Energized Normally | AG157: 0 | AH157: 0.009 | AI157: 0 | AJ157: 0 | AK157: 0 | AL157: 9 | AM157: 0
A158: 5 | B158: 7 | D158: 25 VDC Regulator Module with 1 x 8 Zone Relay Card | E158: 4007-9802 | AC158: 0 | AE158: 25 VDC Regulator Module with 1 x 8 Zone Relay Card | AF158: 4007-9802 | AG158: 0 | AH158: 0.19 | AI158: 0 | AJ158: 0.445 | AK158: 0 | AL158: 190 | AM158: 445
A159: 5 | B159: 8 | D159: 25 VDC Regulator Module with 2 x 8 Zone Relay Cards | E159: 4007-9802 | AC159: 0 | AE159: 25 VDC Regulator Module with 2 x 8 Zone Relay Cards | AF159: 4007-9802 | AG159: 0 | AH159: 0.29 | AI159: 0 | AJ159: 0.801 | AK159: 0 | AL159: 290 | AM159: 801
A160: 5 | B160: 9 | D160: 25 VDC Regulator Module with 3 x 8 Zone Relay Cards | E160: 4007-9802 | AC160: 0 | AE160: 25 VDC Regulator Module with 3 x 8 Zone Relay Cards | AF160: 4007-9802 | AG160: 0 | AH160: 0.39 | AI160: 0 | AJ160: 1.156 | AK160: 0 | AL160: 390 | AM160: 1156
A161: 5 | B161: 10 | D161: ESMX Optional Loop Mezzanine Card | E161: 4007-6312 | AC161: 0 | AE161: ESMX Optional Loop Mezzanine Card | AF161: 4007-6312 | AG161: 0 | AH161: 0 | AI161: 0 | AJ161: 0 | AK161: 0 | AL161: 0 | AM161: 0
A162: 5 | B162: 11 | D162: Dual Class A Isolator Card | E162: 4007-9804 | AC162: 0 | AE162: Dual Class A Isolator Card | AF162: 4007-9804 | AG162: 0 | AH162: 0.0127 | AI162: 0 | AJ162: 0.025 | AK162: 0 | AL162: 12.7 | AM162: 25
A163: 5 | B163: 12 | D163: Dual RS-232 Interface Module | E163: 4007-9812 | AC163: 0 | AE163: Dual RS-232 Interface Module | AF163: 4007-9812 | AG163: 0 | AH163: 0.06 | AI163: 0 | AJ163: 0.06 | AK163: 0 | AL163: 60 | AM163: 60
A164: 5 | B164: 13 | D164: Relay Module Alarm, Supervisory and Trouble | E164: 4007-9809 | AC164: 0 | AE164: Relay Module Alarm, Supervisory and Trouble | AF164: 4007-9809 | AG164: 0 | AH164: 0.015 | AI164: 0 | AJ164: 0.037 | AK164: 0 | AL164: 15 | AM164: 37
A165: 5 | B165: 14 | D165: City Circuit Module with Disconnect Switch | E165: 4007-9807 | AC165: 0 | AE165: City Circuit Module with Disconnect Switch | AF165: 4007-9807 | AG165: 0 | AH165: =AL165/1000 -> 0.02 | AI165: 0 | AJ165: =AM165/1000 -> 0.036 | AK165: 0 | AL165: 20 | AM165: 36
A166: 5 | B166: 15 | D166: City Circuit Module without Disconnect Switch | E166: 4007-9808 | AC166: 0 | AE166: City Circuit Module without Disconnect Switch | AF166: 4007-9808 | AG166: 0 | AH166: 0.02 | AI166: =AG166*AH166 -> 0 | AJ166: 0.036 | AK166: =AG166*AJ166 -> 0 | AL166: 20 | AM166: 36
A167: 4 | B167: 0 | C167: + | D167: COMMUNICATIONS | E167: 0 | AC167: 0 | AE167: COMMUNICATIONS | AG167: 0 | AH167: 0 | AI167: 0 | AJ167: 0 | AK167: 0
A168: 5 | B168: 1 | C168: ★ | D168: SDACT Module for Point or Event Reporting | E168: 4007-9806 | AC168: 0 | AE168: SDACT Module for Point or Event Reporting | AF168: 4007-9806 | AG168: 0 | AH168: 0.03 | AI168: 0 | AJ168: 0.04 | AK168: 0 | AL168: 30 | AM168: 40
A169: 5 | B169: 2 | C169: ★ | D169: IP Communicator Connected Services Gateway | E169: 4007-2504 | AC169: 0 | AE169: IP Communicator Connected Services Gateway | AF169: 4007-2504 | AG169: 0 | AH169: 0.125 | AI169: 0 | AJ169: 0.125 | AK169: 0 | AL169: 125 | AM169: 125
A170: 5 | B170: 3 | C170: ★ | D170: GSM 4G/LTE Cellular Module Kit for Internal Mount | E170: 4007-6416 | AC170: 0 | AE170: GSM 4G/LTE Cellular Module Kit for Internal Mount | AF170: 4007-6416 | AG170: 0 | AH170: 0.02 | AI170: 0 | AJ170: 0.02 | AK170: 0 | AL170: 20 | AM170: 20
A171: 4 | B171: 0 | C171: + | D171: ESNET | E171: 0 | AC171: 0 | AE171: ESNET | AG171: 0 | AH171: 0 | AI171: 0 | AJ171: 0 | AK171: 0
A172: 5 | B172: 1 | D172: 4007ES ESNet Network Card | E172: 4007-9817 | AC172: 0 | AE172: 4007ES ESNet Network Card | AF172: 4007-9817 | AG172: 0 | AH172: 0.12 | AI172: 0 | AJ172: 0.12 | AK172: 0 | AL172: 120 | AM172: 120
A173: 5 | B173: 2 | D173: ESNet Ethernet media card | E173: 4007-6306 | AC173: 0 | AE173: ESNet Ethernet media card | AF173: 4007-6306 | AG173: 0 | AH173: 0.02 | AI173: 0 | AJ173: 0.02 | AK173: 0 | AL173: 20 | AM173: 20
A174: 5 | B174: 3 | D174: ESNet Single-mode fiber media card | E174: 4007-6308 | AC174: 0 | AE174: ESNet Single-mode fiber media card | AF174: 4007-6308 | AG174: 0 | AH174: 0.135 | AI174: 0 | AJ174: 0.135 | AK174: 0 | AL174: 135 | AM174: 135
A175: 5 | B175: 4 | D175: ESNet Multi-mode fiber media card | E175: 4007-6309 | AC175: 0 | AE175: ESNet Multi-mode fiber media card | AF175: 4007-6309 | AG175: 0 | AH175: 0.135 | AI175: 0 | AJ175: 0.135 | AK175: 0 | AL175: 135 | AM175: 135
A176: 5 | B176: 5 | D176: ESNet DSL (copper) media card | E176: 4007-6307 | AC176: 0 | AE176: ESNet DSL (copper) media card | AF176: 4007-6307 | AG176: 0 | AH176: 0.155 | AI176: 0 | AJ176: 0.155 | AK176: 0 | AL176: 155 | AM176: 155
A177: 4 | B177: 0 | C177: + | D177: REMOTE ANNUNCIATORS | E177: 0 | AC177: 0 | AE177: REMOTE ANNUNCIATORS | AG177: 0 | AH177: 0 | AI177: 0 | AJ177: 0 | AK177: 0
A178: 5 | B178: 1 | C178: ★ | D178: Red Color Touchscreen Annunciator | E178: 4606-9202 | AC178: 0 | AE178: Red Color Touchscreen Annunciator | AF178: 4606-9202 | AG178: 0 | AH178: 0.07 | AI178: 0 | AJ178: 0.124 | AK178: 0 | AL178: 70 | AM178: 124
A179: 5 | B179: 2 | C179: ★ | D179: Platinum Color Touchscreen Annunciator | E179: 4606-9205 | AC179: 0 | AE179: Platinum Color Touchscreen Annunciator | AF179: 4606-9205 | AG179: 0 | AH179: 0.07 | AI179: 0 | AJ179: 0.124 | AK179: 0 | AL179: 70 | AM179: 124
A180: 5 | B180: 3 | D180: Status Command Unit | E180: 4602-9101 | AC180: 0 | AE180: Status Command Unit | AF180: 4602-9101 | AG180: 0 | AH180: 0.036 | AI180: 0 | AJ180: 0.055 | AK180: 0 | AL180: 36 | AM180: 55
A181: 5 | B181: 4 | D181: Remote Command Unit | E181: 4602-9102 | AC181: 0 | AE181: Remote Command Unit | AF181: 4602-9102 | AG181: 0 | AH181: 0.04 | AI181: 0 | AJ181: 0.08 | AK181: 0 | AL181: 40 | AM181: 80
A182: 2 | B182: 0 | C182: - | D182: 4010ES | E182: 0 | AC182: 0 | AE182: 4010ES | AG182: 0 | AH182: 0 | AI182: 0 | AJ182: 0 | AK182: 0
A183: 3 | B183: 0 | C183: - | D183: CONTROL PANELS | E183: 0 | AC183: 0 | AE183: CONTROL PANELS | AG183: 0 | AH183: 0 | AI183: 0 | AJ183: 0 | AK183: 0
A184: 4 | B184: 1 | C184: ★ | D184: English 2x40 Display, 120V, 4 NACs, Red, 1 IDNet Channel, 1 Bay Box | E184: 4010-9401 | AC184: 0 | AD184: 1 | AE184: English 2x40 Display, 120V, 4 NACs, Red, 1 IDNet Channel, 1 Bay Box | AF184: 4010-9401 | AG184: 0 | AH184: 0.316 | AI184: 0 | AJ184: 0.43 | AK184: 0 | AL184: 316 | AM184: 430
A185: 4 | B185: 2 | C185: ★ | D185: English 2x40 Display, 120V, 4 NACs, Platinum, 1 IDNet Channel, 1 Bay Box | E185: 4010-9402 | AC185: 0 | AD185: 1 | AE185: English 2x40 Display, 120V, 4 NACs, Platinum, 1 IDNet Channel, 1 Bay Box | AF185: 4010-9402 | AG185: 0 | AH185: 0.316 | AI185: 0 | AJ185: 0.43 | AK185: 0 | AL185: 316 | AM185: 430
A186: 4 | B186: 3 | D186: English 2x40 Display, 120V, 4 NACs, Platinum, 1 IDNet Channel, 48 LEDs, 1 Bay Box | E186: 4010-9404 | AC186: 0 | AD186: 1 | AE186: English 2x40 Display, 120V, 4 NACs, Platinum, 1 IDNet Channel, 48 LEDs, 1 Bay Box | AF186: 4010-9404 | AG186: 0 | AH186: 0.336 | AI186: 0 | AJ186: 0.495 | AK186: 0 | AL186: 336 | AM186: 495
A187: 4 | B187: 4 | D187: French 2x40 Display, 120V, 4 NACs, Platinum, 1 IDNet Channel, 48 LEDs, 1 Bay Box | E187: 4010-9406 | AC187: 0 | AD187: 1 | AE187: French 2x40 Display, 120V, 4 NACs, Platinum, 1 IDNet Channel, 48 LEDs, 1 Bay Box | AF187: 4010-9406 | AG187: 0 | AH187: 0.336 | AI187: 0 | AJ187: 0.495 | AK187: 0 | AL187: 336 | AM187: 495
A188: 4 | B188: 5 | D188: English 2x40 Display, 120V, 4 NACs, Red, 2 IDNet Channels, 2 Bay Box | E188: 4010-9421 | AC188: 0 | AD188: 1 | AE188: English 2x40 Display, 120V, 4 NACs, Red, 2 IDNet Channels, 2 Bay Box | AF188: 4010-9421 | AG188: 0 | AH188: 0.391 | AI188: 0 | AJ188: 0.545 | AK188: 0 | AL188: 391 | AM188: 545
A189: 4 | B189: 6 | D189: English 2x40 Display, 120V, 4 NACs, Platinum, 2 IDNet Channels, 48 LEDs, 2 Bay Box | E189: 4010-9428 | AC189: 0 | AD189: 1 | AE189: English 2x40 Display, 120V, 4 NACs, Platinum, 2 IDNet Channels, 48 LEDs, 2 Bay Box | AF189: 4010-9428 | AG189: 0 | AH189: 0.411 | AI189: 0 | AJ189: 0.61 | AK189: 0 | AL189: 411 | AM189: 610
A190: 4 | B190: 7 | D190: Touch Screen Display, 120V, 4 NACs, Red, 2 IDNet Channels, 2 Bay Box | E190: 4010-9435 | AC190: 0 | AD190: 1 | AE190: Touch Screen Display, 120V, 4 NACs, Red, 2 IDNet Channels, 2 Bay Box | AF190: 4010-9435 | AG190: 0 | AH190: 0.486 | AI190: 0 | AJ190: 0.661 | AK190: 0 | AL190: 486 | AM190: 661
A191: 4 | B191: 8 | D191: English 2x40 Display, 220V-240V, 4 NACs, Red, 2 IDNet Channels, 2 Bay Box | E191: 4010-9521 | AC191: 0 | AD191: 1 | AE191: English 2x40 Display, 220V-240V, 4 NACs, Red, 2 IDNet Channels, 2 Bay Box | AF191: 4010-9521 | AG191: 0 | AH191: 0.391 | AI191: 0 | AJ191: 0.545 | AK191: 0 | AL191: 391 | AM191: 545
A192: 4 | B192: 9 | D192: English 2x40 Display, 220V-240V, 4 NACs, Platinum, 2 IDNet Channels, 2 Bay Box | E192: 4010-9522 | AC192: 0 | AD192: 1 | AE192: English 2x40 Display, 220V-240V, 4 NACs, Platinum, 2 IDNet Channels, 2 Bay Box | AF192: 4010-9522 | AG192: 0 | AH192: 0.391 | AI192: 0 | AJ192: 0.545 | AK192: 0 | AL192: 391 | AM192: 545
A193: 4 | B193: 10 | D193: English 2x40 Display, IDNAC, 120V, Red, 1 IDNet Channel, 1 Bay Box | E193: 4010-9601 | AC193: 0 | AD193: 1 | AE193: English 2x40 Display, IDNAC, 120V, Red, 1 IDNet Channel, 1 Bay Box | AF193: 4010-9601 | AG193: 0 | AH193: 0.336 | AI193: 0 | AJ193: 0.54 | AK193: 0 | AL193: 336 | AM193: 540
A194: 4 | B194: 11 | D194: English 2x40 Display, IDNAC, 120V, Platinum, 1 IDNet Channel, 1 Bay Box | E194: 4010-9602 | AC194: 0 | AD194: 1 | AE194: English 2x40 Display, IDNAC, 120V, Platinum, 1 IDNet Channel, 1 Bay Box | AF194: 4010-9602 | AG194: 0 | AH194: 0.336 | AI194: 0 | AJ194: 0.54 | AK194: 0 | AL194: 336 | AM194: 540
A195: 4 | B195: 12 | D195: English 2x40 Display, 120V, IDNAC, Red, 2 IDNet Channels, 2 Bay Box | E195: 4010-9621 | AC195: 0 | AD195: 1 | AE195: English 2x40 Display, 120V, IDNAC, Red, 2 IDNet Channels, 2 Bay Box | AF195: 4010-9621 | AG195: 0 | AH195: 0.411 | AI195: 0 | AJ195: 0.655 | AK195: 0 | AL195: 411 | AM195: 655
A196: 4 | B196: 13 | D196: Touch Screen Display, 120V, IDNAC, Red, 2 IDNet Channels, 2 Bay Box | E196: 4010-9633 | AC196: 0 | AD196: 1 | AE196: Touch Screen Display, 120V, IDNAC, Red, 2 IDNet Channels, 2 Bay Box | AF196: 4010-9633 | AG196: 0 | AH196: 0.506 | AI196: 0 | AJ196: 0.771 | AK196: 0 | AL196: 506 | AM196: 771
A197: 4 | B197: 14 | C197: ★ | D197: English 2x40 Display, IDNAC, 220-240V, Red, 1 IDNet Channel, 1 Bay Box | E197: 4010-9701 | AC197: 0 | AD197: 1 | AE197: English 2x40 Display, IDNAC, 220-240V, Red, 1 IDNet Channel, 1 Bay Box | AF197: 4010-9701 | AG197: 0 | AH197: 0.336 | AI197: 0 | AJ197: 0.54 | AK197: 0 | AL197: 336 | AM197: 540
A198: 4 | B198: =IF(OR(C198="+",C198="-"),0,B197+1) -> 15 | C198: ★ | D198: English 2x40 Display, IDNAC, 220-240V, Platinum, 1 IDNet Channel, 1 Bay Box | E198: 4010-9702 | AC198: 0 | AD198: 1 | AE198: English 2x40 Display, IDNAC, 220-240V, Platinum, 1 IDNet Channel, 1 Bay Box | AF198: 4010-9702 | AG198: 0 | AH198: 0.336 | AI198: 0 | AJ198: 0.54 | AK198: 0 | AL198: 336 | AM198: 540
A199: 4 | B199: 16 | D199: English 2x40 Display, 220V-240V, IDNAC, Red, 2 IDNet Channels, 2 Bay Box | E199: 4010-9721 | AC199: 0 | AD199: 1 | AE199: English 2x40 Display, 220V-240V, IDNAC, Red, 2 IDNet Channels, 2 Bay Box | AF199: 4010-9721 | AG199: 0 | AH199: 0.411 | AI199: 0 | AJ199: 0.655 | AK199: 0 | AL199: 411 | AM199: 655
A200: 4 | B200: 17 | D200: English 2x40 Display, 220V-240V, IDNAC, Platinum, 2 IDNet Channels, 2 Bay Box | E200: 4010-9722 | AC200: 0 | AD200: 1 | AE200: English 2x40 Display, 220V-240V, IDNAC, Platinum, 2 IDNet Channels, 2 Bay Box | AF200: 4010-9722 | AG200: 0 | AH200: 0.411 | AI200: 0 | AJ200: 0.655 | AK200: 0 | AL200: 411 | AM200: 655
... 1800 more rows

Sheet Battery Report
B2: ="Project Name: "&ProjectNameField -> Project Name: Polaris Philippine Project | F2: SELECTED BATTERY SET | H2: 1
B3: ="Customer Name: "&ProjectCustomerNameField -> Customer Name: Black & White Consultant Philippine
B4: ="Project Location: "&ProjectLocationField -> Project Location: | F4: STANDBY HOURS | H4: 24
B5: ="Project Phase: "&ProjectPhaseField -> Project Phase: Phase 1 | F5: STANDBY MINUTES | H5: 5
B6: ="Prepared By: "&Projectpreparedbyfield -> Prepared By: Prestige Philippine | F6: BATTERY FACTOR | H6: 0.25
B7: ="Date: "&(IF(ISBLANK(ProjectDateField),TODAY(),ProjectDateField)) -> Date: 14th Oct 2024 | F7: SPARE CAPACITY | H7: 0
C8: =IF(E9>0,"IDNAC 29 VDC BOOST MULTIPLIER","") -> IDNAC 29 VDC BOOST MULTIPLIER
B9: ="Battery Set Location: " & INDEX(dataBattSetLocation,brBatterySet) -> Battery Set Location: FACP | C9: =IF(E9>0,"IDNAC ALARM CURRENT AMPS","") -> IDNAC ALARM CURRENT AMPS | E9: =SUMPRODUCT('Battery Selection'!AG763:AG1576,'Battery Selection'!AJ763:AJ1576) -> 0.201 | F9: TOTAL STANDBY AMPS | H9: =SUMPRODUCT('Battery Selection'!AG8:AG2000,'Battery Selection'!AH8:AH2000)+E15 -> 0.9578
C10: =IF(E9>0,"IDNAC BOOST FACTOR " & IF(SUM('Battery Selection'!AG481:AG484)>0,1.37,1.57) & " AMPS","") -> IDNAC BOOST FACTOR 1.57 AMPS | E10: =IF(E9>0,(E9*IF(SUM('Battery Selection'!AG481:AG484)>0,1.37,1.57))-E9,0) -> 0.11457 | F10: TOTAL ALARM AMPS | H10: =SUMPRODUCT('Battery Selection'!AG8:AG2000,'Battery Selection'!AJ8:AJ2000)+E10+E13 -> 1.76957
C11: =IF(E12>0,"ESMX LOOP 40 VDC BOOST MULTIPLIER","") -> 
C12: =IF(E12>0,"ESMX LOOP ALARM CURRENT AMPS","") ->  | E12: =SUMPRODUCT(IF('Battery Selection'!AO668:AO757=1,1,0),'Battery Selection'!AG668:AG757,'Battery Selection'!AJ668:AJ757) -> 0
C13: =IF(E12>0,"ESMX LOOP BOOST FACTOR 2.496 AMPS","") ->  | E13: =IF(E12>0,(E12*2.496)-E12,0) -> 0
C14: =IF(E14>0,"ESMX LOOP STANDBY CURRENT AMPS","") ->  | E14: =SUMPRODUCT(IF('Battery Selection'!AO668:AO757=1,1,0),'Battery Selection'!AG668:AG757,'Battery Selection'!AH668:AH757) -> 0 | F14: TOTAL AMPERE HOURS | H14: =(H9*H4)+(H10*(H5/60)) -> 23.13466417
C15: =IF(E14>0,"ESMX LOOP BOOST FACTOR 2.496 AMPS","") ->  | E15: =IF(E14>0,(E14*2.496)-E14,0) -> 0 | F15: MINIMUM BATTERY | H15: =(H14+(H14*H6))+(H14+(H14*H6))*H7 -> 28.91833021
A19: Item | B19: Product Description | C19: Part Code | D19: Qty | E19: UNIT AMPS STANDBY | F19: TOTAL AMPS STANDBY | G19: UNIT AMPS ALARM | H19: TOTAL AMPS ALARM
A20: =ROW(_xlfn.ANCHORARRAY(B20))-19 -> 1 | B20: =_xlfn._xlws.FILTER('Battery Selection'!AE5:AK2000,('Battery Selection'!AG5:AG2000>0)+('Battery Selection'!AD5:AD2000="h"),"Battery Set Empty") -> PANELS AND CONTROL EQUIPMENT | C20: 0 | D20: 0 | E20: header | F20: header | G20: header | H20: header
A21: 2 | B21: ES-PS MSTR CTRLR 2X40 | C21: 4100-9701 | D21: 1 | E21: 0.277 | F21: 0.277 | G21: 0.321 | H21: 0.321
A22: 3 | B22: REMOTE LCD ANNUNCIATOR | C22: 4603-9101 | D22: 1 | E22: 0.065 | F22: 0.065 | G22: 0.14 | H22: 0.14
A23: 4 | B23: ES-PS FAN MODULE | C23: 4100-5131 | D23: 1 | E23: 0 | F23: 0 | G23: 0.2 | H23: 0.2
A24: 5 | B24: ES-PS POWER SUPPLY | C24: 4100-5401 | D24: 1 | E24: 0.068 | F24: 0.068 | G24: 0.077 | H24: 0.077
A25: 6 | B25: IDNAC CARD | C25: 4100-5451 | D25: 1 | E25: 0.124 | F25: 0.124 | G25: 0.23 | H25: 0.23
A26: 7 | B26: ESNET NTWK INTERFACE CARD SLOT | C26: 4100-6104 | D26: 1 | E26: 0.12 | F26: 0.12 | G26: 0.12 | H26: 0.12
A27: 8 | B27: ES NET SM FIBER MEDIA CARD | C27: 4100-6308 | D27: 1 | E27: 0.135 | F27: 0.135 | G27: 0.135 | H27: 0.135
A28: 9 | B28: IDNET2 250PT 2 LOOP MODULE | C28: 4100-3109 | D28: 1 | E28: 0.05 | F28: 0.05 | G28: 0.06 | H28: 0.06
A29: 10 | B29: MSTR CTLR IDNET2, FACTORY ONLY | C29: 4100-3117 | D29: 1 | E29: 0.05 | F29: 0.05 | G29: 0.06 | H29: 0.06
A30: 11 | B30: IDNET ADDRESSABLE DEVICES | C30: 0 | D30: 0 | E30: header | F30: header | G30: header | H30: header
A31: 12 | B31: Number of LEDs on in alarm per loop (max 20 per loop) | C31: 0 | D31: 14 | E31: 0 | F31: 0 | G31: 0.002 | H31: 0.028
A32: 13 | B32: Smoke Detector with Standard Base | C32: 4098-9714|4098-9792 | D32: 14 | E32: 0.0008 | F32: 0.0112 | G32: 0.001 | H32: 0.014
A33: 14 | B33: Smoke Detector with Standard Base with support for Remote LED | C33: 4098-9714|4098-9789 | D33: 5 | E33: 0.0008 | F33: 0.004 | G33: 0.001 | H33: 0.005
A34: 15 | B34: Smoke Detector with Isolator Base | C34: 4098-9714|4098-9793 | D34: 5 | E34: 0.0008 | F34: 0.004 | G34: 0.001 | H34: 0.005
A35: 16 | B35: Heat Detector with Standard Base | C35: 4098-9733|4098-9792 | D35: 1 | E35: 0.0008 | F35: 0.0008 | G35: 0.001 | H35: 0.001
A36: 17 | B36: IAM Module | C36: 4090-9001 | D36: 49 | E36: 0.0008 | F36: 0.0392 | G36: 0.001 | H36: 0.049
A37: 18 | B37: Relay IAM | C37: 4090-9002 | D37: 5 | E37: 0.0008 | F37: 0.004 | G37: 0.001 | H37: 0.005
A38: 19 | B38: Double Action Breakglass operation English | C38: 4099-9005 | D38: 3 | E38: 0.0008 | F38: 0.0024 | G38: 0.001 | H38: 0.003
A39: 20 | B39: Weatherproof Pull Station & IAM Addressable Input Module | C39: RMS-1P-WP|4090-9051 | D39: 1 | E39: 0.0008 | F39: 0.0008 | G39: 0.001 | H39: 0.001
A40: 21 | B40: ADDRESSABLE NOTIFICATION | C40: 0 | D40: 0 | E40: header | F40: header | G40: header | H40: header
A41: 22 | B41: Wall Horn Strobe Red Fire | C41: 49AV-WRF|30 cd | D41: 3 | E41: 0.0008 | F41: 0.0024 | G41: 0.067 | H41: 0.201

Sheet Battery Report Output
B2: Project Name: Polaris Philippine Project | V2: SELECTED BATTERY SET | X2: 1
B3: Customer Name: Black & White Consultant Philippine
B4: Project Location: | V4: STANDBY HOURS | X4: 24
B5: Project Phase: Phase 1 | V5: STANDBY MINUTES | X5: 5
B6: Prepared By: Prestige Philippine | V6: BATTERY FACTOR | X6: 0.25
B7: Date: 14th Oct 2024 | V7: SPARE CAPACITY | X7: 0
B9: Battery Set Location: FACP | U9: 0 | V9: TOTAL STANDBY AMPS | X9: 0.9578
U10: 0 | V10: TOTAL ALARM AMPS | X10: 1.76957
U12: 0
U13: 0
U14: 0 | V14: TOTAL AMPERE HOURS | X14: 23.13466417
U15: 0 | V15: MINIMUM BATTERY | X15: 28.91833021
A19: Item | B19: Product Description | C19: Part Code | D19: Cable DB Lan | E19: Level 1 | F19: Level 2 | G19: Roof Door | H19: Staircase | I19: To be input | J19: To be input | K19: To be input | L19: To be input | M19: To be input | N19: To be input | O19: To be input | P19: To be input | Q19: To be input | R19: To be input | S19: Qty Remain | T19: Qty | U19: UNIT AMPS STANDBY | V19: TOTAL AMPS STANDBY | W19: UNIT AMPS ALARM | X19: TOTAL AMPS ALARM
A20: 1 | B20: PANELS AND CONTROL EQUIPMENT | C20: 0 | D20: 0 | E20: header | F20: header | G20: header | H20: header | I20: header | J20: header | K20: header | L20: header | M20: header | N20: header | O20: header | P20: header | Q20: header | R20: header | S20: header | T20: 0 | U20: header | V20: header | W20: header | X20: header
A21: 2 | B21: ES-PS MSTR CTRLR 2X40 | C21: 4100-9701 | D21: 0 | E21: 1 | F21: 0 | G21: 0 | H21: 0 | I21: 0 | J21: 0 | K21: 0 | L21: 0 | M21: 0 | N21: 0 | O21: 0 | P21: 0 | Q21: 0 | R21: 0 | S21: =IF(($T21-SUM($D21:$R21))<0,"Error",($T21-SUM($D21:$R21))) -> 0 | T21: 1 | U21: 0.277 | V21: 0.277 | W21: 0.321 | X21: 0.321
A22: 3 | B22: REMOTE LCD ANNUNCIATOR | C22: 4603-9101 | D22: 0 | E22: 0 | F22: 1 | G22: 0 | H22: 0 | I22: 0 | J22: 0 | K22: 0 | L22: 0 | M22: 0 | N22: 0 | O22: 0 | P22: 0 | Q22: 0 | R22: 0 | S22: 0 | T22: 1 | U22: 0.065 | V22: 0.065 | W22: 0.14 | X22: 0.14
A23: 4 | B23: ES-PS FAN MODULE | C23: 4100-5131 | D23: 0 | E23: 1 | F23: 0 | G23: 0 | H23: 0 | I23: 0 | J23: 0 | K23: 0 | L23: 0 | M23: 0 | N23: 0 | O23: 0 | P23: 0 | Q23: 0 | R23: 0 | S23: 0 | T23: 1 | U23: 0 | V23: 0 | W23: 0.2 | X23: 0.2
A24: 5 | B24: ES-PS POWER SUPPLY | C24: 4100-5401 | D24: 0 | E24: 1 | F24: 0 | G24: 0 | H24: 0 | I24: 0 | J24: 0 | K24: 0 | L24: 0 | M24: 0 | N24: 0 | O24: 0 | P24: 0 | Q24: 0 | R24: 0 | S24: 0 | T24: 1 | U24: 0.068 | V24: 0.068 | W24: 0.077 | X24: 0.077
A25: 6 | B25: IDNAC CARD | C25: 4100-5451 | D25: 0 | E25: 1 | F25: 0 | G25: 0 | H25: 0 | I25: 0 | J25: 0 | K25: 0 | L25: 0 | M25: 0 | N25: 0 | O25: 0 | P25: 0 | Q25: 0 | R25: 0 | S25: 0 | T25: 1 | U25: 0.124 | V25: 0.124 | W25: 0.23 | X25: 0.23
A26: 7 | B26: ESNET NTWK INTERFACE CARD SLOT | C26: 4100-6104 | D26: 0 | E26: 1 | F26: 0 | G26: 0 | H26: 0 | I26: 0 | J26: 0 | K26: 0 | L26: 0 | M26: 0 | N26: 0 | O26: 0 | P26: 0 | Q26: 0 | R26: 0 | S26: 0 | T26: 1 | U26: 0.12 | V26: 0.12 | W26: 0.12 | X26: 0.12
A27: 8 | B27: ES NET SM FIBER MEDIA CARD | C27: 4100-6308 | D27: 0 | E27: 1 | F27: 0 | G27: 0 | H27: 0 | I27: 0 | J27: 0 | K27: 0 | L27: 0 | M27: 0 | N27: 0 | O27: 0 | P27: 0 | Q27: 0 | R27: 0 | S27: 0 | T27: 1 | U27: 0.135 | V27: 0.135 | W27: 0.135 | X27: 0.135
A28: 9 | B28: IDNET2 250PT 2 LOOP MODULE | C28: 4100-3109 | D28: 0 | E28: 1 | F28: 0 | G28: 0 | H28: 0 | I28: 0 | J28: 0 | K28: 0 | L28: 0 | M28: 0 | N28: 0 | O28: 0 | P28: 0 | Q28: 0 | R28: 0 | S28: 0 | T28: 1 | U28: 0.05 | V28: 0.05 | W28: 0.06 | X28: 0.06
A29: 10 | B29: MSTR CTLR IDNET2, FACTORY ONLY | C29: 4100-3117 | D29: 0 | E29: 1 | F29: 0 | G29: 0 | H29: 0 | I29: 0 | J29: 0 | K29: 0 | L29: 0 | M29: 0 | N29: 0 | O29: 0 | P29: 0 | Q29: 0 | R29: 0 | S29: 0 | T29: 1 | U29: 0.05 | V29: 0.05 | W29: 0.06 | X29: 0.06
A30: 11 | B30: IDNET ADDRESSABLE DEVICES | C30: 0 | D30: 0 | E30: 0 | F30: 0 | G30: 0 | H30: 0 | I30: 0 | J30: 0 | K30: 0 | L30: 0 | M30: 0 | N30: 0 | O30: 0 | P30: 0 | Q30: 0 | R30: 0 | S30: 0 | T30: 0 | U30: header | V30: header | W30: header | X30: header
A31: 12 | B31: Number of LEDs on in alarm per loop (max 20 per loop) | C31: 0 | D31: 0 | E31: 7 | F31: 7 | G31: 0 | H31: 0 | I31: 0 | J31: 0 | K31: 0 | L31: 0 | M31: 0 | N31: 0 | O31: 0 | P31: 0 | Q31: 0 | R31: 0 | S31: 0 | T31: 14 | U31: 0 | V31: 0 | W31: 0.002 | X31: 0.028
A32: 13 | B32: Smoke Detector with Standard Base | C32: 4098-9714|4098-9792 | D32: 0 | E32: 7 | F32: 7 | G32: 0 | H32: 0 | I32: 0 | J32: 0 | K32: 0 | L32: 0 | M32: 0 | N32: 0 | O32: 0 | P32: 0 | Q32: 0 | R32: 0 | S32: 0 | T32: 14 | U32: 0.0008 | V32: 0.0112 | W32: 0.001 | X32: 0.014
A33: 14 | B33: Smoke Detector with Standard Base with support for Remote LED | C33: 4098-9714|4098-9789 | D33: 0 | E33: 3 | F33: 2 | G33: 0 | H33: 0 | I33: 0 | J33: 0 | K33: 0 | L33: 0 | M33: 0 | N33: 0 | O33: 0 | P33: 0 | Q33: 0 | R33: 0 | S33: 0 | T33: 5 | U33: 0.0008 | V33: 0.004 | W33: 0.001 | X33: 0.005
A34: 15 | B34: Smoke Detector with Isolator Base | C34: 4098-9714|4098-9793 | D34: 0 | E34: 3 | F34: 2 | G34: 0 | H34: 0 | I34: 0 | J34: 0 | K34: 0 | L34: 0 | M34: 0 | N34: 0 | O34: 0 | P34: 0 | Q34: 0 | R34: 0 | S34: 0 | T34: 5 | U34: 0.0008 | V34: 0.004 | W34: 0.001 | X34: 0.005
A35: 16 | B35: Heat Detector with Standard Base | C35: 4098-9733|4098-9792 | D35: 0 | E35: 1 | F35: 0 | G35: 0 | H35: 0 | I35: 0 | J35: 0 | K35: 0 | L35: 0 | M35: 0 | N35: 0 | O35: 0 | P35: 0 | Q35: 0 | R35: 0 | S35: 0 | T35: 1 | U35: 0.0008 | V35: 0.0008 | W35: 0.001 | X35: 0.001
A36: 17 | B36: IAM Module | C36: 4090-9001 | D36: 10 | E36: 10 | F36: 10 | G36: 9 | H36: 10 | I36: 0 | J36: 0 | K36: 0 | L36: 0 | M36: 0 | N36: 0 | O36: 0 | P36: 0 | Q36: 0 | R36: 0 | S36: 0 | T36: 49 | U36: 0.0008 | V36: 0.0392 | W36: 0.001 | X36: 0.049
A37: 18 | B37: Relay IAM | C37: 4090-9002 | D37: 5 | E37: 0 | F37: 0 | G37: 0 | H37: 0 | I37: 0 | J37: 0 | K37: 0 | L37: 0 | M37: 0 | N37: 0 | O37: 0 | P37: 0 | Q37: 0 | R37: 0 | S37: 0 | T37: 5 | U37: 0.0008 | V37: 0.004 | W37: 0.001 | X37: 0.005
A38: 19 | B38: Double Action Breakglass operation English | C38: 4099-9005 | D38: 0 | E38: 1 | F38: 1 | G38: 1 | H38: 0 | I38: 0 | J38: 0 | K38: 0 | L38: 0 | M38: 0 | N38: 0 | O38: 0 | P38: 0 | Q38: 0 | R38: 0 | S38: 0 | T38: 3 | U38: 0.0008 | V38: 0.0024 | W38: 0.001 | X38: 0.003
A39: 20 | B39: Weatherproof Pull Station & IAM Addressable Input Module | C39: RMS-1P-WP|4090-9051 | D39: 0 | E39: 0 | F39: 0 | G39: 0 | H39: 1 | I39: 0 | J39: 0 | K39: 0 | L39: 0 | M39: 0 | N39: 0 | O39: 0 | P39: 0 | Q39: 0 | R39: 0 | S39: 0 | T39: 1 | U39: 0.0008 | V39: 0.0008 | W39: 0.001 | X39: 0.001
A40: 21 | B40: ADDRESSABLE NOTIFICATION | C40: 0 | D40: 0 | E40: 0 | F40: 0 | G40: 0 | H40: 0 | I40: 0 | J40: 0 | K40: 0 | L40: 0 | M40: 0 | N40: 0 | O40: 0 | P40: 0 | Q40: 0 | R40: 0 | S40: 0 | T40: 0 | U40: header | V40: header | W40: header | X40: header
A41: 22 | B41: Wall Horn Strobe Red Fire | C41: 49AV-WRF|30 cd | D41: 0 | E41: 1 | F41: 1 | G41: 1 | H41: 0 | I41: 0 | J41: 0 | K41: 0 | L41: 0 | M41: 0 | N41: 0 | O41: 0 | P41: 0 | Q41: 0 | R41: 0 | S41: 0 | T41: 3 | U41: 0.0008 | V41: 0.0024 | W41: 0.067 | X41: 0.201
D42: 0 | E42: 0 | F42: 0 | G42: 0 | H42: 0 | I42: 0 | J42: 0 | K42: 0 | L42: 0 | M42: 0 | N42: 0 | O42: 0 | P42: 0 | Q42: 0 | R42: 0 | S42: 0
D43: 0 | E43: 0 | F43: 0 | G43: 0 | H43: 0 | I43: 0 | J43: 0 | K43: 0 | L43: 0 | M43: 0 | N43: 0 | O43: 0 | P43: 0 | Q43: 0 | R43: 0 | S43: 0
D44: 0 | E44: 0 | F44: 0 | G44: 0 | H44: 0 | I44: 0 | J44: 0 | K44: 0 | L44: 0 | M44: 0 | N44: 0 | O44: 0 | P44: 0 | Q44: 0 | R44: 0 | S44: 0
D45: 0 | E45: 0 | F45: 0 | G45: 0 | H45: 0 | I45: 0 | J45: 0 | K45: 0 | L45: 0 | M45: 0 | N45: 0 | O45: 0 | P45: 0 | Q45: 0 | R45: 0 | S45: 0
D46: 0 | E46: 0 | F46: 0 | G46: 0 | H46: 0 | I46: 0 | J46: 0 | K46: 0 | L46: 0 | M46: 0 | N46: 0 | O46: 0 | P46: 0 | Q46: 0 | R46: 0 | S46: 0
D47: 0 | E47: 0 | F47: 0 | G47: 0 | H47: 0 | I47: 0 | J47: 0 | K47: 0 | L47: 0 | M47: 0 | N47: 0 | O47: 0 | P47: 0 | Q47: 0 | R47: 0 | S47: 0
D48: 0 | E48: 0 | F48: 0 | G48: 0 | H48: 0 | I48: 0 | J48: 0 | K48: 0 | L48: 0 | M48: 0 | N48: 0 | O48: 0 | P48: 0 | Q48: 0 | R48: 0 | S48: 0
D49: 0 | E49: 0 | F49: 0 | G49: 0 | H49: 0 | I49: 0 | J49: 0 | K49: 0 | L49: 0 | M49: 0 | N49: 0 | O49: 0 | P49: 0 | Q49: 0 | R49: 0 | S49: 0
D50: 0 | E50: 0 | F50: 0 | G50: 0 | H50: 0 | I50: 0 | J50: 0 | K50: 0 | L50: 0 | M50: 0 | N50: 0 | O50: 0 | P50: 0 | Q50: 0 | R50: 0 | S50: 0
D51: 0 | E51: 0 | F51: 0 | G51: 0 | H51: 0 | I51: 0 | J51: 0 | K51: 0 | L51: 0 | M51: 0 | N51: 0 | O51: 0 | P51: 0 | Q51: 0 | R51: 0 | S51: 0
D52: 0 | E52: 0 | F52: 0 | G52: 0 | H52: 0 | I52: 0 | J52: 0 | K52: 0 | L52: 0 | M52: 0 | N52: 0 | O52: 0 | P52: 0 | Q52: 0 | R52: 0 | S52: 0
D53: 0 | E53: 0 | F53: 0 | G53: 0 | H53: 0 | I53: 0 | J53: 0 | K53: 0 | L53: 0 | M53: 0 | N53: 0 | O53: 0 | P53: 0 | Q53: 0 | R53: 0 | S53: 0
D54: 0 | E54: 0 | F54: 0 | G54: 0 | H54: 0 | I54: 0 | J54: 0 | K54: 0 | L54: 0 | M54: 0 | N54: 0 | O54: 0 | P54: 0 | Q54: 0 | R54: 0 | S54: 0
D55: 0 | E55: 0 | F55: 0 | G55: 0 | H55: 0 | I55: 0 | J55: 0 | K55: 0 | L55: 0 | M55: 0 | N55: 0 | O55: 0 | P55: 0 | Q55: 0 | R55: 0 | S55: 0
D56: 0 | E56: 0 | F56: 0 | G56: 0 | H56: 0 | I56: 0 | J56: 0 | K56: 0 | L56: 0 | M56: 0 | N56: 0 | O56: 0 | P56: 0 | Q56: 0 | R56: 0 | S56: 0
D57: 0 | E57: 0 | F57: 0 | G57: 0 | H57: 0 | I57: 0 | J57: 0 | K57: 0 | L57: 0 | M57: 0 | N57: 0 | O57: 0 | P57: 0 | Q57: 0 | R57: 0 | S57: 0
D58: 0 | E58: 0 | F58: 0 | G58: 0 | H58: 0 | I58: 0 | J58: 0 | K58: 0 | L58: 0 | M58: 0 | N58: 0 | O58: 0 | P58: 0 | Q58: 0 | R58: 0 | S58: 0
D59: 0 | E59: 0 | F59: 0 | G59: 0 | H59: 0 | I59: 0 | J59: 0 | K59: 0 | L59: 0 | M59: 0 | N59: 0 | O59: 0 | P59: 0 | Q59: 0 | R59: 0 | S59: 0
D60: 0 | E60: 0 | F60: 0 | G60: 0 | H60: 0 | I60: 0 | J60: 0 | K60: 0 | L60: 0 | M60: 0 | N60: 0 | O60: 0 | P60: 0 | Q60: 0 | R60: 0 | S60: 0
D61: 0 | E61: 0 | F61: 0 | G61: 0 | H61: 0 | I61: 0 | J61: 0 | K61: 0 | L61: 0 | M61: 0 | N61: 0 | O61: 0 | P61: 0 | Q61: 0 | R61: 0 | S61: 0
D62: 0 | E62: 0 | F62: 0 | G62: 0 | H62: 0 | I62: 0 | J62: 0 | K62: 0 | L62: 0 | M62: 0 | N62: 0 | O62: 0 | P62: 0 | Q62: 0 | R62: 0 | S62: 0
D63: 0 | E63: 0 | F63: 0 | G63: 0 | H63: 0 | I63: 0 | J63: 0 | K63: 0 | L63: 0 | M63: 0 | N63: 0 | O63: 0 | P63: 0 | Q63: 0 | R63: 0 | S63: 0
D64: 0 | E64: 0 | F64: 0 | G64: 0 | H64: 0 | I64: 0 | J64: 0 | K64: 0 | L64: 0 | M64: 0 | N64: 0 | O64: 0 | P64: 0 | Q64: 0 | R64: 0 | S64: 0
D65: 0 | E65: 0 | F65: 0 | G65: 0 | H65: 0 | I65: 0 | J65: 0 | K65: 0 | L65: 0 | M65: 0 | N65: 0 | O65: 0 | P65: 0 | Q65: 0 | R65: 0 | S65: 0
D66: 0 | E66: 0 | F66: 0 | G66: 0 | H66: 0 | I66: 0 | J66: 0 | K66: 0 | L66: 0 | M66: 0 | N66: 0 | O66: 0 | P66: 0 | Q66: 0 | R66: 0 | S66: 0
D67: 0 | E67: 0 | F67: 0 | G67: 0 | H67: 0 | I67: 0 | J67: 0 | K67: 0 | L67: 0 | M67: 0 | N67: 0 | O67: 0 | P67: 0 | Q67: 0 | R67: 0 | S67: 0
D68: 0 | E68: 0 | F68: 0 | G68: 0 | H68: 0 | I68: 0 | J68: 0 | K68: 0 | L68: 0 | M68: 0 | N68: 0 | O68: 0 | P68: 0 | Q68: 0 | R68: 0 | S68: 0
D69: 0 | E69: 0 | F69: 0 | G69: 0 | H69: 0 | I69: 0 | J69: 0 | K69: 0 | L69: 0 | M69: 0 | N69: 0 | O69: 0 | P69: 0 | Q69: 0 | R69: 0 | S69: 0
D70: 0 | E70: 0 | F70: 0 | G70: 0 | H70: 0 | I70: 0 | J70: 0 | K70: 0 | L70: 0 | M70: 0 | N70: 0 | O70: 0 | P70: 0 | Q70: 0 | R70: 0 | S70: 0
D71: 0 | E71: 0 | F71: 0 | G71: 0 | H71: 0 | I71: 0 | J71: 0 | K71: 0 | L71: 0 | M71: 0 | N71: 0 | O71: 0 | P71: 0 | Q71: 0 | R71: 0 | S71: 0
D72: 0 | E72: 0 | F72: 0 | G72: 0 | H72: 0 | I72: 0 | J72: 0 | K72: 0 | L72: 0 | M72: 0 | N72: 0 | O72: 0 | P72: 0 | Q72: 0 | R72: 0 | S72: 0
D73: 0 | E73: 0 | F73: 0 | G73: 0 | H73: 0 | I73: 0 | J73: 0 | K73: 0 | L73: 0 | M73: 0 | N73: 0 | O73: 0 | P73: 0 | Q73: 0 | R73: 0 | S73: 0
D74: 0 | E74: 0 | F74: 0 | G74: 0 | H74: 0 | I74: 0 | J74: 0 | K74: 0 | L74: 0 | M74: 0 | N74: 0 | O74: 0 | P74: 0 | Q74: 0 | R74: 0 | S74: 0
D75: 0 | E75: 0 | F75: 0 | G75: 0 | H75: 0 | I75: 0 | J75: 0 | K75: 0 | L75: 0 | M75: 0 | N75: 0 | O75: 0 | P75: 0 | Q75: 0 | R75: 0 | S75: 0
D76: 0 | E76: 0 | F76: 0 | G76: 0 | H76: 0 | I76: 0 | J76: 0 | K76: 0 | L76: 0 | M76: 0 | N76: 0 | O76: 0 | P76: 0 | Q76: 0 | R76: 0 | S76: 0
D77: 0 | E77: 0 | F77: 0 | G77: 0 | H77: 0 | I77: 0 | J77: 0 | K77: 0 | L77: 0 | M77: 0 | N77: 0 | O77: 0 | P77: 0 | Q77: 0 | R77: 0 | S77: 0
D78: 0 | E78: 0 | F78: 0 | G78: 0 | H78: 0 | I78: 0 | J78: 0 | K78: 0 | L78: 0 | M78: 0 | N78: 0 | O78: 0 | P78: 0 | Q78: 0 | R78: 0 | S78: 0
D79: 0 | E79: 0 | F79: 0 | G79: 0 | H79: 0 | I79: 0 | J79: 0 | K79: 0 | L79: 0 | M79: 0 | N79: 0 | O79: 0 | P79: 0 | Q79: 0 | R79: 0 | S79: 0
D80: 0 | E80: 0 | F80: 0 | G80: 0 | H80: 0 | I80: 0 | J80: 0 | K80: 0 | L80: 0 | M80: 0 | N80: 0 | O80: 0 | P80: 0 | Q80: 0 | R80: 0 | S80: 0
D81: 0 | E81: 0 | F81: 0 | G81: 0 | H81: 0 | I81: 0 | J81: 0 | K81: 0 | L81: 0 | M81: 0 | N81: 0 | O81: 0 | P81: 0 | Q81: 0 | R81: 0 | S81: 0
D82: 0 | E82: 0 | F82: 0 | G82: 0 | H82: 0 | I82: 0 | J82: 0 | K82: 0 | L82: 0 | M82: 0 | N82: 0 | O82: 0 | P82: 0 | Q82: 0 | R82: 0 | S82: 0
D83: 0 | E83: 0 | F83: 0 | G83: 0 | H83: 0 | I83: 0 | J83: 0 | K83: 0 | L83: 0 | M83: 0 | N83: 0 | O83: 0 | P83: 0 | Q83: 0 | R83: 0 | S83: 0
D84: 0 | E84: 0 | F84: 0 | G84: 0 | H84: 0 | I84: 0 | J84: 0 | K84: 0 | L84: 0 | M84: 0 | N84: 0 | O84: 0 | P84: 0 | Q84: 0 | R84: 0 | S84: 0
D85: 0 | E85: 0 | F85: 0 | G85: 0 | H85: 0 | I85: 0 | J85: 0 | K85: 0 | L85: 0 | M85: 0 | N85: 0 | O85: 0 | P85: 0 | Q85: 0 | R85: 0 | S85: =IF(($T85-SUM($D85:$R85))<0,"Error",($T85-SUM($D85:$R85))) -> 0
D86: 0 | E86: 0 | F86: 0 | G86: 0 | H86: 0 | I86: 0 | J86: 0 | K86: 0 | L86: 0 | M86: 0 | N86: 0 | O86: 0 | P86: 0 | Q86: 0 | R86: 0 | S86: 0
D87: 0 | E87: 0 | F87: 0 | G87: 0 | H87: 0 | I87: 0 | J87: 0 | K87: 0 | L87: 0 | M87: 0 | N87: 0 | O87: 0 | P87: 0 | Q87: 0 | R87: 0 | S87: 0
D88: 0 | E88: 0 | F88: 0 | G88: 0 | H88: 0 | I88: 0 | J88: 0 | K88: 0 | L88: 0 | M88: 0 | N88: 0 | O88: 0 | P88: 0 | Q88: 0 | R88: 0 | S88: 0
D89: 0 | E89: 0 | F89: 0 | G89: 0 | H89: 0 | I89: 0 | J89: 0 | K89: 0 | L89: 0 | M89: 0 | N89: 0 | O89: 0 | P89: 0 | Q89: 0 | R89: 0 | S89: 0
D90: 0 | E90: 0 | F90: 0 | G90: 0 | H90: 0 | I90: 0 | J90: 0 | K90: 0 | L90: 0 | M90: 0 | N90: 0 | O90: 0 | P90: 0 | Q90: 0 | R90: 0 | S90: 0
D91: 0 | E91: 0 | F91: 0 | G91: 0 | H91: 0 | I91: 0 | J91: 0 | K91: 0 | L91: 0 | M91: 0 | N91: 0 | O91: 0 | P91: 0 | Q91: 0 | R91: 0 | S91: 0
D92: 0 | E92: 0 | F92: 0 | G92: 0 | H92: 0 | I92: 0 | J92: 0 | K92: 0 | L92: 0 | M92: 0 | N92: 0 | O92: 0 | P92: 0 | Q92: 0 | R92: 0 | S92: 0
D93: 0 | E93: 0 | F93: 0 | G93: 0 | H93: 0 | I93: 0 | J93: 0 | K93: 0 | L93: 0 | M93: 0 | N93: 0 | O93: 0 | P93: 0 | Q93: 0 | R93: 0 | S93: 0
D94: 0 | E94: 0 | F94: 0 | G94: 0 | H94: 0 | I94: 0 | J94: 0 | K94: 0 | L94: 0 | M94: 0 | N94: 0 | O94: 0 | P94: 0 | Q94: 0 | R94: 0 | S94: 0
D95: 0 | E95: 0 | F95: 0 | G95: 0 | H95: 0 | I95: 0 | J95: 0 | K95: 0 | L95: 0 | M95: 0 | N95: 0 | O95: 0 | P95: 0 | Q95: 0 | R95: 0 | S95: 0
D96: 0 | E96: 0 | F96: 0 | G96: 0 | H96: 0 | I96: 0 | J96: 0 | K96: 0 | L96: 0 | M96: 0 | N96: 0 | O96: 0 | P96: 0 | Q96: 0 | R96: 0 | S96: 0
D97: 0 | E97: 0 | F97: 0 | G97: 0 | H97: 0 | I97: 0 | J97: 0 | K97: 0 | L97: 0 | M97: 0 | N97: 0 | O97: 0 | P97: 0 | Q97: 0 | R97: 0 | S97: 0
D98: 0 | E98: 0 | F98: 0 | G98: 0 | H98: 0 | I98: 0 | J98: 0 | K98: 0 | L98: 0 | M98: 0 | N98: 0 | O98: 0 | P98: 0 | Q98: 0 | R98: 0 | S98: 0
D99: 0 | E99: 0 | F99: 0 | G99: 0 | H99: 0 | I99: 0 | J99: 0 | K99: 0 | L99: 0 | M99: 0 | N99: 0 | O99: 0 | P99: 0 | Q99: 0 | R99: 0 | S99: 0
D100: 0 | E100: 0 | F100: 0 | G100: 0 | H100: 0 | I100: 0 | J100: 0 | K100: 0 | L100: 0 | M100: 0 | N100: 0 | O100: 0 | P100: 0 | Q100: 0 | R100: 0 | S100: 0
D101: 0 | E101: 0 | F101: 0 | G101: 0 | H101: 0 | I101: 0 | J101: 0 | K101: 0 | L101: 0 | M101: 0 | N101: 0 | O101: 0 | P101: 0 | Q101: 0 | R101: 0 | S101: 0
D102: 0 | E102: 0 | F102: 0 | G102: 0 | H102: 0 | I102: 0 | J102: 0 | K102: 0 | L102: 0 | M102: 0 | N102: 0 | O102: 0 | P102: 0 | Q102: 0 | R102: 0 | S102: 0
D103: 0 | E103: 0 | F103: 0 | G103: 0 | H103: 0 | I103: 0 | J103: 0 | K103: 0 | L103: 0 | M103: 0 | N103: 0 | O103: 0 | P103: 0 | Q103: 0 | R103: 0 | S103: 0
D104: 0 | E104: 0 | F104: 0 | G104: 0 | H104: 0 | I104: 0 | J104: 0 | K104: 0 | L104: 0 | M104: 0 | N104: 0 | O104: 0 | P104: 0 | Q104: 0 | R104: 0 | S104: 0
D105: 0 | E105: 0 | F105: 0 | G105: 0 | H105: 0 | I105: 0 | J105: 0 | K105: 0 | L105: 0 | M105: 0 | N105: 0 | O105: 0 | P105: 0 | Q105: 0 | R105: 0 | S105: 0
D106: 0 | E106: 0 | F106: 0 | G106: 0 | H106: 0 | I106: 0 | J106: 0 | K106: 0 | L106: 0 | M106: 0 | N106: 0 | O106: 0 | P106: 0 | Q106: 0 | R106: 0 | S106: 0
D107: 0 | E107: 0 | F107: 0 | G107: 0 | H107: 0 | I107: 0 | J107: 0 | K107: 0 | L107: 0 | M107: 0 | N107: 0 | O107: 0 | P107: 0 | Q107: 0 | R107: 0 | S107: 0
D108: 0 | E108: 0 | F108: 0 | G108: 0 | H108: 0 | I108: 0 | J108: 0 | K108: 0 | L108: 0 | M108: 0 | N108: 0 | O108: 0 | P108: 0 | Q108: 0 | R108: 0 | S108: 0
D109: 0 | E109: 0 | F109: 0 | G109: 0 | H109: 0 | I109: 0 | J109: 0 | K109: 0 | L109: 0 | M109: 0 | N109: 0 | O109: 0 | P109: 0 | Q109: 0 | R109: 0 | S109: 0
D110: 0 | E110: 0 | F110: 0 | G110: 0 | H110: 0 | I110: 0 | J110: 0 | K110: 0 | L110: 0 | M110: 0 | N110: 0 | O110: 0 | P110: 0 | Q110: 0 | R110: 0 | S110: 0
D111: 0 | E111: 0 | F111: 0 | G111: 0 | H111: 0 | I111: 0 | J111: 0 | K111: 0 | L111: 0 | M111: 0 | N111: 0 | O111: 0 | P111: 0 | Q111: 0 | R111: 0 | S111: 0
D112: 0 | E112: 0 | F112: 0 | G112: 0 | H112: 0 | I112: 0 | J112: 0 | K112: 0 | L112: 0 | M112: 0 | N112: 0 | O112: 0 | P112: 0 | Q112: 0 | R112: 0 | S112: 0
D113: 0 | E113: 0 | F113: 0 | G113: 0 | H113: 0 | I113: 0 | J113: 0 | K113: 0 | L113: 0 | M113: 0 | N113: 0 | O113: 0 | P113: 0 | Q113: 0 | R113: 0 | S113: 0
D114: 0 | E114: 0 | F114: 0 | G114: 0 | H114: 0 | I114: 0 | J114: 0 | K114: 0 | L114: 0 | M114: 0 | N114: 0 | O114: 0 | P114: 0 | Q114: 0 | R114: 0 | S114: 0
D115: 0 | E115: 0 | F115: 0 | G115: 0 | H115: 0 | I115: 0 | J115: 0 | K115: 0 | L115: 0 | M115: 0 | N115: 0 | O115: 0 | P115: 0 | Q115: 0 | R115: 0 | S115: 0
D116: 0 | E116: 0 | F116: 0 | G116: 0 | H116: 0 | I116: 0 | J116: 0 | K116: 0 | L116: 0 | M116: 0 | N116: 0 | O116: 0 | P116: 0 | Q116: 0 | R116: 0 | S116: 0
D117: 0 | E117: 0 | F117: 0 | G117: 0 | H117: 0 | I117: 0 | J117: 0 | K117: 0 | L117: 0 | M117: 0 | N117: 0 | O117: 0 | P117: 0 | Q117: 0 | R117: 0 | S117: 0
D118: 0 | E118: 0 | F118: 0 | G118: 0 | H118: 0 | I118: 0 | J118: 0 | K118: 0 | L118: 0 | M118: 0 | N118: 0 | O118: 0 | P118: 0 | Q118: 0 | R118: 0 | S118: 0
D119: 0 | E119: 0 | F119: 0 | G119: 0 | H119: 0 | I119: 0 | J119: 0 | K119: 0 | L119: 0 | M119: 0 | N119: 0 | O119: 0 | P119: 0 | Q119: 0 | R119: 0 | S119: 0
D120: 0 | E120: 0 | F120: 0 | G120: 0 | H120: 0 | I120: 0 | J120: 0 | K120: 0 | L120: 0 | M120: 0 | N120: 0 | O120: 0 | P120: 0 | Q120: 0 | R120: 0 | S120: 0
D121: 0 | E121: 0 | F121: 0 | G121: 0 | H121: 0 | I121: 0 | J121: 0 | K121: 0 | L121: 0 | M121: 0 | N121: 0 | O121: 0 | P121: 0 | Q121: 0 | R121: 0 | S121: 0
D122: 0 | E122: 0 | F122: 0 | G122: 0 | H122: 0 | I122: 0 | J122: 0 | K122: 0 | L122: 0 | M122: 0 | N122: 0 | O122: 0 | P122: 0 | Q122: 0 | R122: 0 | S122: 0
D123: 0 | E123: 0 | F123: 0 | G123: 0 | H123: 0 | I123: 0 | J123: 0 | K123: 0 | L123: 0 | M123: 0 | N123: 0 | O123: 0 | P123: 0 | Q123: 0 | R123: 0 | S123: 0
D124: 0 | E124: 0 | F124: 0 | G124: 0 | H124: 0 | I124: 0 | J124: 0 | K124: 0 | L124: 0 | M124: 0 | N124: 0 | O124: 0 | P124: 0 | Q124: 0 | R124: 0 | S124: 0
D125: 0 | E125: 0 | F125: 0 | G125: 0 | H125: 0 | I125: 0 | J125: 0 | K125: 0 | L125: 0 | M125: 0 | N125: 0 | O125: 0 | P125: 0 | Q125: 0 | R125: 0 | S125: 0
D126: 0 | E126: 0 | F126: 0 | G126: 0 | H126: 0 | I126: 0 | J126: 0 | K126: 0 | L126: 0 | M126: 0 | N126: 0 | O126: 0 | P126: 0 | Q126: 0 | R126: 0 | S126: 0
D127: 0 | E127: 0 | F127: 0 | G127: 0 | H127: 0 | I127: 0 | J127: 0 | K127: 0 | L127: 0 | M127: 0 | N127: 0 | O127: 0 | P127: 0 | Q127: 0 | R127: 0 | S127: 0
D128: 0 | E128: 0 | F128: 0 | G128: 0 | H128: 0 | I128: 0 | J128: 0 | K128: 0 | L128: 0 | M128: 0 | N128: 0 | O128: 0 | P128: 0 | Q128: 0 | R128: 0 | S128: 0
D129: 0 | E129: 0 | F129: 0 | G129: 0 | H129: 0 | I129: 0 | J129: 0 | K129: 0 | L129: 0 | M129: 0 | N129: 0 | O129: 0 | P129: 0 | Q129: 0 | R129: 0 | S129: 0
D130: 0 | E130: 0 | F130: 0 | G130: 0 | H130: 0 | I130: 0 | J130: 0 | K130: 0 | L130: 0 | M130: 0 | N130: 0 | O130: 0 | P130: 0 | Q130: 0 | R130: 0 | S130: 0
D131: 0 | E131: 0 | F131: 0 | G131: 0 | H131: 0 | I131: 0 | J131: 0 | K131: 0 | L131: 0 | M131: 0 | N131: 0 | O131: 0 | P131: 0 | Q131: 0 | R131: 0 | S131: 0
D132: 0 | E132: 0 | F132: 0 | G132: 0 | H132: 0 | I132: 0 | J132: 0 | K132: 0 | L132: 0 | M132: 0 | N132: 0 | O132: 0 | P132: 0 | Q132: 0 | R132: 0 | S132: 0
D133: 0 | E133: 0 | F133: 0 | G133: 0 | H133: 0 | I133: 0 | J133: 0 | K133: 0 | L133: 0 | M133: 0 | N133: 0 | O133: 0 | P133: 0 | Q133: 0 | R133: 0 | S133: 0
D134: 0 | E134: 0 | F134: 0 | G134: 0 | H134: 0 | I134: 0 | J134: 0 | K134: 0 | L134: 0 | M134: 0 | N134: 0 | O134: 0 | P134: 0 | Q134: 0 | R134: 0 | S134: 0
D135: 0 | E135: 0 | F135: 0 | G135: 0 | H135: 0 | I135: 0 | J135: 0 | K135: 0 | L135: 0 | M135: 0 | N135: 0 | O135: 0 | P135: 0 | Q135: 0 | R135: 0 | S135: 0
D136: 0 | E136: 0 | F136: 0 | G136: 0 | H136: 0 | I136: 0 | J136: 0 | K136: 0 | L136: 0 | M136: 0 | N136: 0 | O136: 0 | P136: 0 | Q136: 0 | R136: 0 | S136: 0
D137: 0 | E137: 0 | F137: 0 | G137: 0 | H137: 0 | I137: 0 | J137: 0 | K137: 0 | L137: 0 | M137: 0 | N137: 0 | O137: 0 | P137: 0 | Q137: 0 | R137: 0 | S137: 0
D138: 0 | E138: 0 | F138: 0 | G138: 0 | H138: 0 | I138: 0 | J138: 0 | K138: 0 | L138: 0 | M138: 0 | N138: 0 | O138: 0 | P138: 0 | Q138: 0 | R138: 0 | S138: 0
D139: 0 | E139: 0 | F139: 0 | G139: 0 | H139: 0 | I139: 0 | J139: 0 | K139: 0 | L139: 0 | M139: 0 | N139: 0 | O139: 0 | P139: 0 | Q139: 0 | R139: 0 | S139: 0
D140: 0 | E140: 0 | F140: 0 | G140: 0 | H140: 0 | I140: 0 | J140: 0 | K140: 0 | L140: 0 | M140: 0 | N140: 0 | O140: 0 | P140: 0 | Q140: 0 | R140: 0 | S140: 0
D141: 0 | E141: 0 | F141: 0 | G141: 0 | H141: 0 | I141: 0 | J141: 0 | K141: 0 | L141: 0 | M141: 0 | N141: 0 | O141: 0 | P141: 0 | Q141: 0 | R141: 0 | S141: 0
D142: 0 | E142: 0 | F142: 0 | G142: 0 | H142: 0 | I142: 0 | J142: 0 | K142: 0 | L142: 0 | M142: 0 | N142: 0 | O142: 0 | P142: 0 | Q142: 0 | R142: 0 | S142: 0
D143: 0 | E143: 0 | F143: 0 | G143: 0 | H143: 0 | I143: 0 | J143: 0 | K143: 0 | L143: 0 | M143: 0 | N143: 0 | O143: 0 | P143: 0 | Q143: 0 | R143: 0 | S143: 0
D144: 0 | E144: 0 | F144: 0 | G144: 0 | H144: 0 | I144: 0 | J144: 0 | K144: 0 | L144: 0 | M144: 0 | N144: 0 | O144: 0 | P144: 0 | Q144: 0 | R144: 0 | S144: 0
D145: 0 | E145: 0 | F145: 0 | G145: 0 | H145: 0 | I145: 0 | J145: 0 | K145: 0 | L145: 0 | M145: 0 | N145: 0 | O145: 0 | P145: 0 | Q145: 0 | R145: 0 | S145: 0
D146: 0 | E146: 0 | F146: 0 | G146: 0 | H146: 0 | I146: 0 | J146: 0 | K146: 0 | L146: 0 | M146: 0 | N146: 0 | O146: 0 | P146: 0 | Q146: 0 | R146: 0 | S146: 0
D147: 0 | E147: 0 | F147: 0 | G147: 0 | H147: 0 | I147: 0 | J147: 0 | K147: 0 | L147: 0 | M147: 0 | N147: 0 | O147: 0 | P147: 0 | Q147: 0 | R147: 0 | S147: 0
D148: 0 | E148: 0 | F148: 0 | G148: 0 | H148: 0 | I148: 0 | J148: 0 | K148: 0 | L148: 0 | M148: 0 | N148: 0 | O148: 0 | P148: 0 | Q148: 0 | R148: 0 | S148: 0
D149: 0 | E149: 0 | F149: 0 | G149: 0 | H149: 0 | I149: 0 | J149: 0 | K149: 0 | L149: 0 | M149: 0 | N149: 0 | O149: 0 | P149: 0 | Q149: 0 | R149: 0 | S149: =IF(($T149-SUM($D149:$R149))<0,"Error",($T149-SUM($D149:$R149))) -> 0
D150: 0 | E150: 0 | F150: 0 | G150: 0 | H150: 0 | I150: 0 | J150: 0 | K150: 0 | L150: 0 | M150: 0 | N150: 0 | O150: 0 | P150: 0 | Q150: 0 | R150: 0 | S150: 0
D1000: 0 | E1000: 0 | F1000: 0 | G1000: 0 | H1000: 0 | I1000: 0 | J1000: 0 | K1000: 0 | L1000: 0 | M1000: 0 | N1000: 0 | O1000: 0 | P1000: 0 | Q1000: 0 | R1000: 0 | S1000: =IF(($T1000-SUM($D1000:$R1000))<0,"Error",($T1000-SUM($D1000:$R1000))) -> 0
AH1263: =#REF! ->  | AI1263: =#REF! -> 
AH1264: =#REF! ->  | AI1264: =#REF! -> 
AH1265: =#REF! ->  | AI1265: =#REF! -> 
AH1266: =#REF! ->  | AI1266: =#REF! -> 
AH1267: =#REF! ->  | AI1267: =#REF! -> 
AH1268: =#REF! ->  | AI1268: =#REF! -> 
AH1269: =#REF! ->  | AI1269: =#REF! -> 
AH1270: =#REF! ->  | AI1270: =#REF! -> 
AH1271: =#REF! ->  | AI1271: =#REF! -> 
AH1272: =#REF! ->  | AI1272: =#REF! -> 
AH1273: =#REF! ->  | AI1273: =#REF! -> 
AH1274: =#REF! ->  | AI1274: =#REF! -> 
AH1275: =#REF! ->  | AI1275: =#REF! -> 
AH1276: =#REF! ->  | AI1276: =#REF! -> 
AH1277: =#REF! ->  | AI1277: =#REF! -> 
AH1278: =#REF! ->  | AI1278: =#REF! -> 
AH1279: =#REF! ->  | AI1279: =#REF! -> 
AH1280: =#REF! ->  | AI1280: =#REF! -> 
AH1281: =#REF! ->  | AI1281: =#REF! -> 
AH1282: =#REF! ->  | AI1282: =#REF! -> 
AH1283: =#REF! ->  | AI1283: =#REF! -> 
AH1284: =#REF! ->  | AI1284: =#REF! -> 
AH1285: =#REF! ->  | AI1285: =#REF! -> 
AH1286: =#REF! ->  | AI1286: =#REF! -> 
AH1287: =#REF! ->  | AI1287: =#REF! -> 
AH1288: =#REF! ->  | AI1288: =#REF! -> 
AH1289: =#REF! ->  | AI1289: =#REF! -> 
AH1290: =#REF! ->  | AI1290: =#REF! -> 
AH1291: =#REF! ->  | AI1291: =#REF! -> 
AH1292: =#REF! ->  | AI1292: =#REF! -> 
AH1293: =#REF! ->  | AI1293: =#REF! -> 
AH1294: =#REF! ->  | AI1294: =#REF! -> 
AH1295: =#REF! ->  | AI1295: =#REF! -> 
AH1296: =#REF! ->  | AI1296: =#REF! -> 
AH1297: =#REF! ->  | AI1297: =#REF! -> 
AH1298: =#REF! ->  | AI1298: =#REF! -> 
AH1299: =#REF! ->  | AI1299: =#REF! -> 
AH1300: =#REF! ->  | AI1300: =#REF! -> 
AH1301: =#REF! ->  | AI1301: =#REF! -> 
AH1302: =#REF! ->  | AI1302: =#REF! -> 
AH1303: =#REF! ->  | AI1303: =#REF! -> 
AH1304: =#REF! ->  | AI1304: =#REF! -> 
AH1305: =#REF! ->  | AI1305: =#REF! -> 
AH1306: =#REF! ->  | AI1306: =#REF! -> 
AH1307: =#REF! ->  | AI1307: =#REF! -> 
AH1308: =#REF! ->  | AI1308: =#REF! -> 
AH1309: =#REF! ->  | AI1309: =#REF! -> 
AH1310: =#REF! ->  | AI1310: =#REF! -> 
AH1311: =#REF! ->  | AI1311: =#REF! -> 
AH1312: =#REF! ->  | AI1312: =#REF! -> 
AH1314: =#REF! ->  | AI1314: =#REF! -> 
AH1315: =#REF! ->  | AI1315: =#REF! -> 
AH1316: =#REF! ->  | AI1316: =#REF! -> 
AH1317: =#REF! ->  | AI1317: =#REF! -> 
AH1318: =#REF! ->  | AI1318: =#REF! -> 
... 146 more rows

Sheet Loading Reference
T1: Do not delete
H2: Standby Current findings from Solution Navigator | L2: Total Standby | N2: Alarm Current findings from Solution Navigator | R2: Total Alarm | T2: 0 | U2: 0
B3: PID | C3: Description | E3: Qty | F3: cct | G3: Unit Standby mA | H3: Unit Standby mA | I3: Unit Standby mA | J3: Unit Standby mA | K3: Unit Standby mA | L3: Select NAC % | M3: Unit Alarm mA | N3: Unit Alarm mA | O3: Unit Alarm mA | P3: Unit Alarm mA | Q3: Unit Alarm mA | R3: Select IDNET % | T3: 0.25 | U3: 1
E4: Loading % | G4: 0 | H4: 0.25 | I4: 0.5 | J4: 0.75 | K4: 1 | L4: 0 | M4: 0 | N4: 0.25 | O4: 0.5 | P4: 0.75 | Q4: 1 | R4: 1 | T4: 0.5 | U4: 2
D5: Amp | E5: 3000 | G5: 0 | H5: =+E5*H4 -> 750 | I5: =+I4*E5 -> 1500 | J5: =+J4*E5 -> 2250 | K5: =+K4*E5 -> 3000
B6: 4100-5450 | C6: NAC Card(Assume 3 active cct) | D6: mA | E6: 1 | F6: 3 | G6: =66 -> 66 | H6: =66 -> 66 | I6: =66 -> 66 | J6: =66 -> 66 | K6: =66 -> 66 | L6: =IF($L$4=1,(+E6*K6),(IF($L$4=0.75,(+E6*J6),(IF($L$4=0.5,(+E6*I6),(IF($L$4=0.25,(+E6*H6),(IF($L$4=0,(+E6*G6),0))))))))) -> 66 | M6: 66 | N6: =+O6-600 -> 3966 | O6: 4566 | P6: 6816 | Q6: =3022*$E$6*$E$6*$F$6 -> 9066 | R6: =IF($L$4=1,(+E6*Q6),(IF($L$4=0.75,(+E6*P6),(IF($L$4=0.5,(+E6*O6),(IF($L$4=0.25,(+E6*N6),(IF($L$4=0,(+E6*M6),0))))))))) -> 66 | T6: 0.75 | U6: 3
D7: Points | E7: 250 | G7: 0 | H7: =+H4*E7 -> 62.5 | I7: =+I4*E7 -> 125 | J7: =+J4*E7 -> 187.5 | K7: =+K4*E7 -> 250
B8: 4100-3117/09 | C8: Master Controller IDNET 2 | D8: mA | E8: 1 | G8: 50 | H8: 100 | I8: 150 | J8: 199.6 | K8: 250 | L8: =IF($R$4=1,(+E8*K8),(IF($R$4=0.75,(+E8*J8),(IF($R$4=0.5,(+E8*I8),(IF($R$4=0.25,(+E8*H8),(IF($R$4=0,(+E8*G8),0))))))))) -> 250 | M8: 60 | N8: =+O8-$E$6 -> 264 | O8: 265 | P8: 327 | Q8: 390 | R8: =IF($R$4=1,(+E8*Q8),(IF($R$4=0.75,(+E8*P8),(IF($R$4=0.5,(+E8*O8),(IF($R$4=0.25,(+E8*N8),(IF($R$4=0,(+E8*M8),0))))))))) -> 390 | T8: 1 | U8: 4
U9: 5
U10: 6
B11: Typical Panel Basic Requirements | F11: Unit Standby Amp | G11: Total Standby | H11: Unit Alarm Amp | I11: Total Alarm | U11: 7
B12: 4100-9701 | C12: ES-PS MSTR CTRLR 2X40 | D12: 1 | F12: 227 | G12: =+F12*D12 -> 227 | H12: 0.441 | I12: 0.321 | U12: 8
B13: 4100-5401 | C13: ES-PS POWER SUPPLY | D13: =(IF(R8>2000,(IF(R8>4000,3,2)),1)) -> 1 | F13: 0.068 | G13: =+F13*D13 -> 0.068 | H13: 0.077 | I13: =+H13*D13 -> 0.077 | U13: 9
U14: 10
C15: STANDBY HOURS | D15: 24 | U15: 11
C16: STANDBY MINUTES | D16: 5 | U16: 12
C17: BATTERY FACTOR | D17: 0.25 | T17: 0 | U17: 5 | V17: 0.05 | W17: 0
C18: SPARE CAPACITY | D18: 0 | T18: 24 | U18: 10 | V18: 0.1 | W18: 0.05
T19: 48 | U19: 15 | V19: 0.2 | W19: 0.1
C20: Equipment | G20: TOTAL STBY AMPS | H20: TOTAL Alarm AMPS | T20: 72 | U20: 30 | V20: 0.25 | W20: 0.2
C21: NAC | G21: =+L6/1000 -> 0.066 | H21: =+R6/1000 -> 0.066 | T21: =24*4 -> 96 | U21: 45 | V21: 0.3 | W21: 0.25
C22: Loop Card | G22: =+L8/1000 -> 0.25 | H22: =+R8/1000 -> 0.39 | T22: =24*5 -> 120 | U22: 60 | V22: 0.35 | W22: 0.3
C23: Master Controller | G23: =+G12 -> 227 | H23: =+I12 -> 0.321 | V23: 0.4 | W23: 0.35
C24: Power Supply | G24: =+G13 -> 0.068 | H24: =+I13 -> 0.077 | V24: 0.45 | W24: 0.4
E25: Subtotal | G25: =SUM(G21:G24) -> 227.384 | H25: =SUM(H21:H24) -> 0.854 | V25: 0.5 | W25: 0.45
W26: 0.5
C28: TOTAL AMPERE HOURS | G28: =(G25*D15)+(H25*(D16/60)) -> 5457.287167 | H28: AH
C29: MINIMUM BATTERY | G29: =(G28+(G28*D17))+(G28+(G28*D17))*D18 -> 6821.608958 | H29: AH
